Workbook

Sheet Proportion nymph survival
A1: Light_treatment | B1: Temperature | C1: Replicate | D1: Initial_nymph_number | E1: Week_1 | F1: Week_2 | G1: Week_3 | H1: Week_4 | I1: Week_5 | J1: Week_6 | K1: Week_7 | L1: Proportion_surviving
A2: ALAN | B2: 24 | C2: 1 | D2: 100 | E2: 100 | F2: 92 | G2: 86 | H2: 84 | I2: 83 | J2: 77 | K2: 74 | L2: =K2/D2 -> 0.74
A3: ALAN | B3: 24 | C3: 2 | D3: 100 | E3: 100 | F3: 97 | G3: 93 | H3: 93 | I3: 93 | J3: 90 | K3: 88 | L3: 0.88
A4: ALAN | B4: 24 | C4: 3 | D4: 100 | E4: 84 | F4: 82 | G4: 82 | H4: 80 | I4: 77 | J4: 74 | K4: 74 | L4: 0.74
A5: Dark | B5: 24 | C5: 4 | D5: 100 | E5: 84 | F5: 79 | G5: 77 | H5: 77 | I5: 74 | J5: 73 | K5: 73 | L5: 0.73
A6: Dark | B6: 24 | C6: 5 | D6: 100 | E6: 94 | F6: 92 | G6: 85 | H6: 82 | I6: 82 | J6: 81 | K6: 81 | L6: 0.81
A7: Dark | B7: 24 | C7: 6 | D7: 100 | E7: 88 | F7: 86 | G7: 85 | H7: 84 | I7: 80 | J7: 77 | K7: 77 | L7: 0.77
A8: ALAN | B8: 26 | C8: 7 | D8: 100 | E8: 100 | F8: 42 | G8: 39 | H8: 39 | I8: 38 | J8: 37 | K8: 26 | L8: 0.26
A9: ALAN | B9: 26 | C9: 8 | D9: 100 | E9: 64 | F9: 58 | G9: 54 | H9: 53 | I9: 53 | J9: 51 | K9: 51 | L9: 0.51
A10: ALAN | B10: 26 | C10: 9 | D10: 100 | E10: 78 | F10: 76 | G10: 71 | H10: 68 | I10: 63 | J10: 58 | K10: 58 | L10: 0.58
A11: Dark | B11: 26 | C11: 10 | D11: 100 | E11: 81 | F11: 74 | G11: 70 | H11: 64 | I11: 62 | J11: 58 | K11: 58 | L11: 0.58
A12: Dark | B12: 26 | C12: 11 | D12: 100 | E12: 65 | F12: 61 | G12: 61 | H12: 59 | I12: 56 | J12: 56 | K12: 56 | L12: 0.56
A13: Dark | B13: 26 | C13: 12 | D13: 100 | E13: 82 | F13: 79 | G13: 79 | H13: 72 | I13: 72 | J13: 62 | K13: 62 | L13: 0.62

Sheet Development size and longevity
A1: ID | B1: Light_treatment | C1: Temperature | D1: Replicate | E1: Sex | F1: Number | G1: SEX_ID | H1: Treattemp | I1: Tempsex | J1: Treattempsex | K1: Pronotum_width | L1: Relative_pronotum_width | M1: Development | N1: Survived_to_adult | O1: Adult_longevity | P1: Total_longevity
A2: ALAN-24-3-F-68 | B2: ALAN | C2: 24 | D2: 3 | E2: F | F2: 68 | G2: F68 | H2: ALAN24 | I2: =C2&E2 -> 24F | J2: ALAN24F | K2: 6.26 | L2: =(K2-AVERAGE(K$2:K$30))/STDEV(K$2:K$30) -> 0.18 | M2: 65 | N2: 1 | O2: 57 | P2: 122
A3: ALAN-24-3-F-79 | B3: ALAN | C3: 24 | D3: 3 | E3: F | F3: 79 | G3: F79 | H3: ALAN24 | I3: 24F | J3: ALAN24F | K3: 6.31 | L3: =(K3-AVERAGE(K$2:K$30))/STDEV(K$2:K$30) -> 0.39 | M3: 66 | N3: 1 | O3: 102 | P3: 168
A4: ALAN-24-3-F-65 | B4: ALAN | C4: 24 | D4: 3 | E4: F | F4: 65 | G4: F65 | H4: ALAN24 | I4: 24F | J4: ALAN24F | K4: 6.20 | L4: -0.07 | M4: 66 | N4: 1 | O4: 89 | P4: 155
A5: ALAN-24-3-F-77 | B5: ALAN | C5: 24 | D5: 3 | E5: F | F5: 77 | G5: F77 | H5: ALAN24 | I5: 24F | J5: ALAN24F | K5: 5.88 | L5: -1.41 | M5: 66 | N5: 1 | O5: 47 | P5: 113
A6: ALAN-24-3-F-66 | B6: ALAN | C6: 24 | D6: 3 | E6: F | F6: 66 | G6: F66 | H6: ALAN24 | I6: 24F | J6: ALAN24F | K6: 6.48 | L6: 1.10 | M6: 68 | N6: 1 | O6: 95 | P6: 163
A7: ALAN-24-3-F-67 | B7: ALAN | C7: 24 | D7: 3 | E7: F | F7: 67 | G7: F67 | H7: ALAN24 | I7: 24F | J7: ALAN24F | K7: 6.47 | L7: 1.06 | M7: 68 | N7: 1 | O7: 87 | P7: 155
A8: ALAN-24-3-F-69 | B8: ALAN | C8: 24 | D8: 3 | E8: F | F8: 69 | G8: F69 | H8: ALAN24 | I8: 24F | J8: ALAN24F | K8: 6.29 | L8: 0.31 | M8: 68 | N8: 1 | O8: 50 | P8: 118
A9: ALAN-24-3-F-73 | B9: ALAN | C9: 24 | D9: 3 | E9: F | F9: 73 | G9: F73 | H9: ALAN24 | I9: 24F | J9: ALAN24F | K9: 5.96 | L9: -1.07 | M9: 68 | N9: 1 | O9: 63 | P9: 131
A10: ALAN-24-3-F-74 | B10: ALAN | C10: 24 | D10: 3 | E10: F | F10: 74 | G10: F74 | H10: ALAN24 | I10: 24F | J10: ALAN24F | K10: 6.32 | L10: 0.43 | M10: 68 | N10: 1 | O10: 71 | P10: 139
A11: ALAN-24-3-F-71 | B11: ALAN | C11: 24 | D11: 3 | E11: F | F11: 71 | G11: F71 | H11: ALAN24 | I11: 24F | J11: ALAN24F | K11: 6.20 | L11: -0.07 | M11: 70 | N11: 1 | O11: 60 | P11: 130
A12: ALAN-24-3-F-72 | B12: ALAN | C12: 24 | D12: 3 | E12: F | F12: 72 | G12: F72 | H12: ALAN24 | I12: 24F | J12: ALAN24F | K12: 6.46 | L12: 1.02 | M12: 72 | N12: 1 | O12: 97 | P12: 169
A13: ALAN-24-3-F-75 | B13: ALAN | C13: 24 | D13: 3 | E13: F | F13: 75 | G13: F75 | H13: ALAN24 | I13: 24F | J13: ALAN24F | K13: 6.02 | L13: -0.82 | M13: 72 | N13: 1 | O13: 48 | P13: 120
A14: ALAN-24-3-F-78 | B14: ALAN | C14: 24 | D14: 3 | E14: F | F14: 78 | G14: F78 | H14: ALAN24 | I14: 24F | J14: ALAN24F | K14: 6.22 | L14: 0.02 | M14: 72 | N14: 1 | O14: 94 | P14: 166
A15: ALAN-24-2-F-116 | B15: ALAN | C15: 24 | D15: 2 | E15: F | F15: 116 | G15: F116 | H15: ALAN24 | I15: 24F | J15: ALAN24F | K15: 5.49 | L15: -3.04 | M15: 66 | N15: 1 | O15: 58 | P15: 124
A16: ALAN-24-3-F-70 | B16: ALAN | C16: 24 | D16: 3 | E16: F | F16: 70 | G16: F70 | H16: ALAN24 | I16: 24F | J16: ALAN24F | K16: 6.16 | L16: -0.24 | M16: 73 | N16: 1 | O16: 59 | P16: 132
A17: ALAN-24-3-F-76 | B17: ALAN | C17: 24 | D17: 3 | E17: F | F17: 76 | G17: F76 | H17: ALAN24 | I17: 24F | J17: ALAN24F | K17: 6.30 | L17: 0.35 | M17: 73 | N17: 1 | O17: 68 | P17: 141
A18: ALAN-24-2-F-110 | B18: ALAN | C18: 24 | D18: 2 | E18: F | F18: 110 | G18: F110 | H18: ALAN24 | I18: 24F | J18: ALAN24F | K18: 6.55 | L18: 1.40 | M18: 69 | N18: 1 | O18: 69 | P18: 138
A19: ALAN-24-2-F-120 | B19: ALAN | C19: 24 | D19: 2 | E19: F | F19: 120 | G19: F120 | H19: ALAN24 | I19: 24F | J19: ALAN24F | K19: 6.58 | L19: 1.52 | M19: 70 | N19: 1 | O19: 71 | P19: 141
A20: ALAN-24-2-F-118 | B20: ALAN | C20: 24 | D20: 2 | E20: F | F20: 118 | G20: F118 | H20: ALAN24 | I20: 24F | J20: ALAN24F | K20: 6.37 | L20: 0.64 | M20: 72 | N20: 1 | O20: 85 | P20: 157
A21: ALAN-24-2-F-121 | B21: ALAN | C21: 24 | D21: 2 | E21: F | F21: 121 | G21: F121 | H21: ALAN24 | I21: 24F | J21: ALAN24F | K21: 6.12 | L21: -0.40 | M21: 72 | N21: 1 | O21: 49 | P21: 121
A22: ALAN-24-2-F-112 | B22: ALAN | C22: 24 | D22: 2 | E22: F | F22: 112 | G22: F112 | H22: ALAN24 | I22: 24F | J22: ALAN24F | K22: 5.95 | L22: -1.11 | M22: 74 | N22: 1 | O22: 73 | P22: 147
A23: ALAN-24-2-F-114 | B23: ALAN | C23: 24 | D23: 2 | E23: F | F23: 114 | G23: F114 | H23: ALAN24 | I23: 24F | J23: ALAN24F | K23: 6.33 | L23: 0.48 | M23: 74 | N23: 1 | O23: 45 | P23: 119
A24: ALAN-24-2-F-119 | B24: ALAN | C24: 24 | D24: 2 | E24: F | F24: 119 | G24: F119 | H24: ALAN24 | I24: 24F | J24: ALAN24F | K24: 6.46 | L24: 1.02 | M24: 74 | N24: 1 | O24: 53 | P24: 127
A25: ALAN-24-2-F-123 | B25: ALAN | C25: 24 | D25: 2 | E25: F | F25: 123 | G25: F123 | H25: ALAN24 | I25: 24F | J25: ALAN24F | K25: 5.93 | L25: -1.20 | M25: 74 | N25: 1 | O25: 80 | P25: 154
A26: ALAN-24-2-F-122 | B26: ALAN | C26: 24 | D26: 2 | E26: F | F26: 122 | G26: F122 | H26: ALAN24 | I26: 24F | J26: ALAN24F | K26: 6.11 | L26: -0.44 | M26: 75 | N26: 1 | O26: 29 | P26: 104
A27: ALAN-24-2-F-113 | B27: ALAN | C27: 24 | D27: 2 | E27: F | F27: 113 | G27: F113 | H27: ALAN24 | I27: 24F | J27: ALAN24F | K27: 6.04 | L27: -0.74 | M27: 76 | N27: 1 | O27: 54 | P27: 130
A28: ALAN-24-2-F-115 | B28: ALAN | C28: 24 | D28: 2 | E28: F | F28: 115 | G28: F115 | H28: ALAN24 | I28: 24F | J28: ALAN24F | K28: 6.11 | L28: -0.44 | M28: 76 | N28: 1 | O28: 76 | P28: 152
A29: ALAN-24-2-F-117 | B29: ALAN | C29: 24 | D29: 2 | E29: F | F29: 117 | G29: F117 | H29: ALAN24 | I29: 24F | J29: ALAN24F | K29: 6.48 | L29: 1.10 | M29: 76 | N29: 1 | O29: 49 | P29: 125
A30: ALAN-24-2-F-111 | B30: ALAN | C30: 24 | D30: 2 | E30: F | F30: 111 | G30: F111 | H30: ALAN24 | I30: 24F | J30: ALAN24F | K30: 6.22 | L30: 0.02 | M30: 77 | N30: 1 | O30: 60 | P30: 137
A31: DARK-24-4-F-93 | B31: Dark | C31: 24 | D31: 4 | E31: F | F31: 93 | G31: F93 | H31: DARK24 | I31: 24F | J31: DARK24F | K31: 6.23 | L31: =(K31-AVERAGE(K$31:K$60))/STDEV(K$31:K$60) -> 0.24 | M31: 67 | N31: 1 | O31: 96 | P31: 163
A32: DARK-24-4-F-88 | B32: Dark | C32: 24 | D32: 4 | E32: F | F32: 88 | G32: F88 | H32: DARK24 | I32: 24F | J32: DARK24F | K32: 6.29 | L32: =(K32-AVERAGE(K$31:K$60))/STDEV(K$31:K$60) -> 0.53 | M32: 68 | N32: 1 | O32: 35 | P32: 103
A33: DARK-24-4-F-81 | B33: Dark | C33: 24 | D33: 4 | E33: F | F33: 81 | G33: F81 | H33: DARK24 | I33: 24F | J33: DARK24F | M33: 70 | N33: 1 | O33: 93 | P33: 163
A34: DARK-24-4-F-83 | B34: Dark | C34: 24 | D34: 4 | E34: F | F34: 83 | G34: F83 | H34: DARK24 | I34: 24F | J34: DARK24F | K34: 6.48 | L34: 1.48 | M34: 70 | N34: 1 | O34: 57 | P34: 127
A35: DARK-24-4-F-94 | B35: Dark | C35: 24 | D35: 4 | E35: F | F35: 94 | G35: F94 | H35: DARK24 | I35: 24F | J35: DARK24F | K35: 6.53 | L35: 1.73 | M35: 70 | N35: 1 | O35: 24 | P35: 94
A36: DARK-24-4-F-89 | B36: Dark | C36: 24 | D36: 4 | E36: F | F36: 89 | G36: F89 | H36: DARK24 | I36: 24F | J36: DARK24F | K36: 6.53 | L36: 1.73 | M36: 72 | N36: 1 | O36: 52 | P36: 124
A37: DARK-24-4-F-92 | B37: Dark | C37: 24 | D37: 4 | E37: F | F37: 92 | G37: F92 | H37: DARK24 | I37: 24F | J37: DARK24F | K37: 6.22 | L37: 0.19 | M37: 72 | N37: 1 | O37: 33 | P37: 105
A38: DARK-24-4-F-82 | B38: Dark | C38: 24 | D38: 4 | E38: F | F38: 82 | G38: F82 | H38: DARK24 | I38: 24F | J38: DARK24F | K38: 6.37 | L38: 0.93 | M38: 74 | N38: 1 | O38: 102 | P38: 176
A39: DARK-24-4-F-84 | B39: Dark | C39: 24 | D39: 4 | E39: F | F39: 84 | G39: F84 | H39: DARK24 | I39: 24F | J39: DARK24F | K39: 6.19 | L39: 0.04 | M39: 74 | N39: 1 | O39: 37 | P39: 111
A40: DARK-24-4-F-90 | B40: Dark | C40: 24 | D40: 4 | E40: F | F40: 90 | G40: F90 | H40: DARK24 | I40: 24F | J40: DARK24F | K40: 6.42 | L40: 1.18 | M40: 74 | N40: 1 | O40: 97 | P40: 171
A41: DARK-24-4-F-87 | B41: Dark | C41: 24 | D41: 4 | E41: F | F41: 87 | G41: F87 | H41: DARK24 | I41: 24F | J41: DARK24F | M41: 75 | N41: 1 | O41: 52 | P41: 127
A42: DARK-24-4-F-80 | B42: Dark | C42: 24 | D42: 4 | E42: F | F42: 80 | G42: F80 | H42: DARK24 | I42: 24F | J42: DARK24F | K42: 6.11 | L42: -0.36 | M42: 75 | N42: 1 | O42: 30 | P42: 105
A43: DARK-24-4-F-86 | B43: Dark | C43: 24 | D43: 4 | E43: F | F43: 86 | G43: F86 | H43: DARK24 | I43: 24F | J43: DARK24F | K43: 6.15 | L43: -0.19 | M43: 75 | N43: 1 | O43: 91 | P43: 166
A44: DARK-24-6-F-104 | B44: Dark | C44: 24 | D44: 6 | E44: F | F44: 104 | G44: F104 | H44: DARK24 | I44: 24F | J44: DARK24F | K44: 5.98 | L44: -1.03 | M44: 76 | N44: 1 | O44: 88 | P44: 164
A45: DARK-24-6-F-109 | B45: Dark | C45: 24 | D45: 6 | E45: F | F45: 109 | G45: F109 | H45: DARK24 | I45: 24F | J45: DARK24F | K45: 6.24 | L45: 0.28 | M45: 77 | N45: 1 | O45: 37 | P45: 114
A46: DARK-24-4-F-85 | B46: Dark | C46: 24 | D46: 4 | E46: F | F46: 85 | G46: F85 | H46: DARK24 | I46: 24F | J46: DARK24F | K46: 6.14 | L46: -0.21 | M46: 77 | N46: 1 | O46: 97 | P46: 174
A47: DARK-24-4-F-91 | B47: Dark | C47: 24 | D47: 4 | E47: F | F47: 91 | G47: F91 | H47: DARK24 | I47: 24F | J47: DARK24F | K47: 6.20 | L47: 0.09 | M47: 77 | N47: 1 | O47: 95 | P47: 172
A48: DARK-24-6-F-102 | B48: Dark | C48: 24 | D48: 6 | E48: F | F48: 102 | G48: F102 | H48: DARK24 | I48: 24F | J48: DARK24F | K48: 6.15 | L48: -0.16 | M48: 78 | N48: 1 | O48: 33 | P48: 111
A49: DARK-24-6-F-108 | B49: Dark | C49: 24 | D49: 6 | E49: F | F49: 108 | G49: F108 | H49: DARK24 | I49: 24F | J49: DARK24F | K49: 6.16 | L49: -0.11 | M49: 78 | N49: 1 | O49: 81 | P49: 159
A50: DARK-24-6-F-95 | B50: Dark | C50: 24 | D50: 6 | E50: F | F50: 95 | G50: F95 | H50: DARK24 | I50: 24F | J50: DARK24F | M50: 78 | N50: 1 | O50: 42 | P50: 120
A51: DARK-24-6-F-105 | B51: Dark | C51: 24 | D51: 6 | E51: F | F51: 105 | G51: F105 | H51: DARK24 | I51: 24F | J51: DARK24F | M51: 79 | N51: 1 | O51: 10 | P51: 89
A52: DARK-24-6-F-101 | B52: Dark | C52: 24 | D52: 6 | E52: F | F52: 101 | G52: F101 | H52: DARK24 | I52: 24F | J52: DARK24F | K52: 6.29 | L52: 0.53 | M52: 79 | N52: 1 | O52: 82 | P52: 161
A53: DARK-24-6-F-107 | B53: Dark | C53: 24 | D53: 6 | E53: F | F53: 107 | G53: F107 | H53: DARK24 | I53: 24F | J53: DARK24F | K53: 5.72 | L53: -2.30 | M53: 79 | N53: 1 | O53: 88 | P53: 167
A54: DARK-24-6-F-98 | B54: Dark | C54: 24 | D54: 6 | E54: F | F54: 98 | G54: F98 | H54: DARK24 | I54: 24F | J54: DARK24F | K54: 6.10 | L54: -0.41 | M54: 79 | N54: 1 | O54: 81 | P54: 160
A55: DARK-24-6-F-100 | B55: Dark | C55: 24 | D55: 6 | E55: F | F55: 100 | G55: F100 | H55: DARK24 | I55: 24F | J55: DARK24F | K55: 5.81 | L55: -1.85 | M55: 80 | N55: 1 | O55: 81 | P55: 161
A56: DARK-24-6-F-96 | B56: Dark | C56: 24 | D56: 6 | E56: F | F56: 96 | G56: F96 | H56: DARK24 | I56: 24F | J56: DARK24F | K56: 5.96 | L56: -1.11 | M56: 80 | N56: 1 | O56: 81 | P56: 161
A57: DARK-24-6-F-97 | B57: Dark | C57: 24 | D57: 6 | E57: F | F57: 97 | G57: F97 | H57: DARK24 | I57: 24F | J57: DARK24F | K57: 6.08 | L57: -0.51 | M57: 81 | N57: 1 | O57: 83 | P57: 164
A58: DARK-24-6-F-103 | B58: Dark | C58: 24 | D58: 6 | E58: F | F58: 103 | G58: F103 | H58: DARK24 | I58: 24F | J58: DARK24F | K58: 6.10 | L58: -0.44 | M58: 82 | N58: 1 | O58: 82 | P58: 164
A59: DARK-24-6-F-106 | B59: Dark | C59: 24 | D59: 6 | E59: F | F59: 106 | G59: F106 | H59: DARK24 | I59: 24F | J59: DARK24F | K59: 5.96 | L59: -1.11 | M59: 82 | N59: 1 | O59: 65 | P59: 147
A60: DARK-24-6-F-99 | B60: Dark | C60: 24 | D60: 6 | E60: F | F60: 99 | G60: F99 | H60: DARK24 | I60: 24F | J60: DARK24F | K60: 6.36 | L60: 0.86 | M60: 84 | N60: 1 | O60: 82 | P60: 166
A61: ALAN-24-3-M-89 | B61: ALAN | C61: 24 | D61: 3 | E61: M | F61: 89 | G61: M89 | H61: ALAN24 | I61: 24M | J61: ALAN24M | K61: 6.24 | L61: =(K61-AVERAGE(K$61:K$84))/STDEV(K$61:K$84) -> -0.27 | M61: 68 | N61: 1 | O61: 7 | P61: 75
A62: ALAN-24-3-M-77 | B62: ALAN | C62: 24 | D62: 3 | E62: M | F62: 77 | G62: M77 | H62: ALAN24 | I62: 24M | J62: ALAN24M | K62: 6.26 | L62: =(K62-AVERAGE(K$61:K$84))/STDEV(K$61:K$84) -> -0.19 | M62: 68 | N62: 1 | O62: 41 | P62: 109
A63: ALAN-24-3-M-85 | B63: ALAN | C63: 24 | D63: 3 | E63: M | F63: 85 | G63: M85 | H63: ALAN24 | I63: 24M | J63: ALAN24M | K63: 6.45 | L63: 0.62 | M63: 70 | N63: 1 | O63: 80 | P63: 150
A64: ALAN-24-3-M-79 | B64: ALAN | C64: 24 | D64: 3 | E64: M | F64: 79 | G64: M79 | H64: ALAN24 | I64: 24M | J64: ALAN24M | K64: 6.50 | L64: 0.83 | M64: 72 | N64: 1 | O64: 65 | P64: 137
A65: ALAN-24-3-M-91 | B65: ALAN | C65: 24 | D65: 3 | E65: M | F65: 91 | G65: M91 | H65: ALAN24 | I65: 24M | J65: ALAN24M | K65: 6.36 | L65: 0.24 | M65: 72 | N65: 1 | O65: 52 | P65: 124
A66: ALAN-24-3-M-83 | B66: ALAN | C66: 24 | D66: 3 | E66: M | F66: 83 | G66: M83 | H66: ALAN24 | I66: =C66&E66 -> 24M | J66: ALAN24M | K66: 6.57 | L66: 1.13 | M66: 73 | N66: 1 | O66: 51 | P66: 124
A67: ALAN-24-3-M-86 | B67: ALAN | C67: 24 | D67: 3 | E67: M | F67: 86 | G67: M86 | H67: ALAN24 | I67: 24M | J67: ALAN24M | K67: 6.59 | L67: 1.21 | M67: 73 | N67: 1 | O67: 65 | P67: 138
A68: ALAN-24-3-M-81 | B68: ALAN | C68: 24 | D68: 3 | E68: M | F68: 81 | G68: M81 | H68: ALAN24 | I68: 24M | J68: ALAN24M | K68: 6.63 | L68: 1.38 | M68: 75 | N68: 1 | O68: 48 | P68: 123
A69: ALAN-24-3-M-88 | B69: ALAN | C69: 24 | D69: 3 | E69: M | F69: 88 | G69: M88 | H69: ALAN24 | I69: 24M | J69: ALAN24M | K69: 6.71 | L69: 1.72 | M69: 75 | N69: 1 | O69: 19 | P69: 94
A70: ALAN-24-2-M-126 | B70: ALAN | C70: 24 | D70: 2 | E70: M | F70: 126 | G70: M126 | H70: ALAN24 | I70: 24M | J70: ALAN24M | K70: 6.26 | L70: -0.19 | M70: 70 | N70: 1 | O70: 77 | P70: 147
A71: ALAN-24-3-M-90 | B71: ALAN | C71: 24 | D71: 3 | E71: M | F71: 90 | G71: M90 | H71: ALAN24 | I71: 24M | J71: ALAN24M | K71: 6.41 | L71: 0.45 | M71: 77 | N71: 1 | O71: 34 | P71: 111
A72: ALAN-24-3-M-84 | B72: ALAN | C72: 24 | D72: 3 | E72: M | F72: 84 | G72: M84 | H72: ALAN24 | I72: 24M | J72: ALAN24M | K72: 6.38 | L72: 0.32 | M72: 80 | N72: 1 | O72: 94 | P72: 174
A73: ALAN-24-2-M-131 | B73: ALAN | C73: 24 | D73: 2 | E73: M | F73: 131 | G73: M131 | H73: ALAN24 | I73: 24M | J73: ALAN24M | K73: 6.24 | L73: -0.27 | M73: 74 | N73: 1 | O73: 80 | P73: 154
A74: ALAN-24-2-M-134 | B74: ALAN | C74: 24 | D74: 2 | E74: M | F74: 134 | G74: M134 | H74: ALAN24 | I74: 24M | J74: ALAN24M | K74: 6.36 | L74: 0.24 | M74: 75 | N74: 1 | O74: 85 | P74: 160
A75: ALAN-24-2-M-125 | B75: ALAN | C75: 24 | D75: 2 | E75: M | F75: 125 | G75: M125 | H75: ALAN24 | I75: 24M | J75: ALAN24M | K75: 6.20 | L75: -0.44 | M75: 76 | N75: 1 | O75: 84 | P75: 160
A76: ALAN-24-2-M-124 | B76: ALAN | C76: 24 | D76: 2 | E76: M | F76: 124 | G76: M124 | H76: ALAN24 | I76: 24M | J76: ALAN24M | K76: 6.31 | L76: 0.02 | M76: 77 | N76: 1 | O76: 61 | P76: 138
A77: ALAN-24-2-M-129 | B77: ALAN | C77: 24 | D77: 2 | E77: M | F77: 129 | G77: M129 | H77: ALAN24 | I77: 24M | J77: ALAN24M | K77: 6.52 | L77: 0.92 | M77: 78 | N77: 1 | O77: 42 | P77: 120
A78: ALAN-24-2-M-135 | B78: ALAN | C78: 24 | D78: 2 | E78: M | F78: 135 | G78: M135 | H78: ALAN24 | I78: 24M | J78: ALAN24M | K78: 5.98 | L78: -1.38 | M78: 78 | N78: 1 | O78: 63 | P78: 141
A79: ALAN-24-2-M-127 | B79: ALAN | C79: 24 | D79: 2 | E79: M | F79: 127 | G79: M127 | H79: ALAN24 | I79: 24M | J79: ALAN24M | K79: 6.43 | L79: 0.53 | M79: 79 | N79: 1 | O79: 97 | P79: 176
A80: ALAN-24-2-M-132 | B80: ALAN | C80: 24 | D80: 2 | E80: M | F80: 132 | G80: M132 | H80: ALAN24 | I80: 24M | J80: ALAN24M | K80: 6.13 | L80: -0.74 | M80: 79 | N80: 1 | O80: 79 | P80: 158
A81: ALAN-24-2-M-136 | B81: ALAN | C81: 24 | D81: 2 | E81: M | F81: 136 | G81: M136 | H81: ALAN24 | I81: 24M | J81: ALAN24M | K81: 6.07 | L81: -1.02 | M81: 79 | N81: 1 | O81: 83 | P81: 162
A82: ALAN-24-2-M-130 | B82: ALAN | C82: 24 | D82: 2 | E82: M | F82: 130 | G82: M130 | H82: ALAN24 | I82: 24M | J82: ALAN24M | K82: 5.86 | L82: -1.89 | M82: 83 | N82: 1 | O82: 76 | P82: 159
A83: ALAN-24-2-M-133 | B83: ALAN | C83: 24 | D83: 2 | E83: M | F83: 133 | G83: M133 | H83: ALAN24 | I83: 24M | J83: ALAN24M | K83: 5.87 | L83: -1.84 | M83: 83 | N83: 1 | O83: 77 | P83: 160
A84: ALAN-24-2-M-122 | B84: ALAN | C84: 24 | D84: 2 | E84: M | F84: 122 | G84: M122 | H84: ALAN24 | I84: 24M | J84: ALAN24M | K84: 5.98 | L84: -1.38 | M84: 86 | N84: 1 | O84: 74 | P84: 160
A85: DARK-24-4-M-92 | B85: Dark | C85: 24 | D85: 4 | E85: M | F85: 92 | G85: M92 | H85: DARK24 | I85: 24M | J85: DARK24M | K85: 6.19 | L85: =(K85-AVERAGE(K$85:K$112))/STDEV(K$85:K$112) -> -0.59 | M85: 62 | N85: 1 | O85: 105 | P85: 167
A86: DARK-24-4-M-94 | B86: Dark | C86: 24 | D86: 4 | E86: M | F86: 94 | G86: M94 | H86: DARK24 | I86: 24M | J86: DARK24M | K86: 5.93 | L86: =(K86-AVERAGE(K$85:K$112))/STDEV(K$85:K$112) -> -1.47 | M86: 63 | N86: 1 | O86: 89 | P86: 152
A87: DARK-24-4-M-93 | B87: Dark | C87: 24 | D87: 4 | E87: M | F87: 93 | G87: M93 | H87: DARK24 | I87: 24M | J87: DARK24M | K87: 6.46 | L87: 0.33 | M87: 67 | N87: 1 | O87: 101 | P87: 168
A88: DARK-24-4-M-105 | B88: Dark | C88: 24 | D88: 4 | E88: M | F88: 105 | G88: M105 | H88: DARK24 | I88: 24M | J88: DARK24M | K88: 6.57 | L88: 0.70 | M88: 72 | N88: 1 | O88: 10 | P88: 82
A89: DARK-24-4-M-101 | B89: Dark | C89: 24 | D89: 4 | E89: M | F89: 101 | G89: M101 | H89: DARK24 | I89: 24M | J89: DARK24M | K89: 5.75 | L89: -2.07 | M89: 72 | N89: 1 | O89: 86 | P89: 158
A90: DARK-24-4-M-95 | B90: Dark | C90: 24 | D90: 4 | E90: M | F90: 95 | G90: M95 | H90: DARK24 | I90: 24M | J90: DARK24M | K90: 6.49 | L90: 0.43 | M90: 72 | N90: 1 | O90: 96 | P90: 168
A91: DARK-24-4-M-99 | B91: Dark | C91: 24 | D91: 4 | E91: M | F91: 99 | G91: M99 | H91: DARK24 | I91: 24M | J91: DARK24M | K91: 6.39 | L91: 0.09 | M91: 73 | N91: 1 | O91: 48 | P91: 121
A92: DARK-24-4-M-104 | B92: Dark | C92: 24 | D92: 4 | E92: M | F92: 104 | G92: M104 | H92: DARK24 | I92: 24M | J92: DARK24M | K92: 6.77 | L92: 1.38 | M92: 73 | N92: 1 | O92: 110 | P92: 183
A93: DARK-24-4-M-97 | B93: Dark | C93: 24 | D93: 4 | E93: M | F93: 97 | G93: M97 | H93: DARK24 | I93: 24M | J93: DARK24M | K93: 6.66 | L93: 1.01 | M93: 74 | N93: 1 | O93: 53 | P93: 127
A94: DARK-24-4-M-100 | B94: Dark | C94: 24 | D94: 4 | E94: M | F94: 100 | G94: M100 | H94: DARK24 | I94: 24M | J94: DARK24M | K94: 6.49 | L94: 0.43 | M94: 77 | N94: 1 | O94: 54 | P94: 131
A95: DARK-24-4-M-102 | B95: Dark | C95: 24 | D95: 4 | E95: M | F95: 102 | G95: M102 | H95: DARK24 | I95: 24M | J95: DARK24M | K95: 6.44 | L95: 0.26 | M95: 77 | N95: 1 | O95: 71 | P95: 148
A96: DARK-24-4-M-103 | B96: Dark | C96: 24 | D96: 4 | E96: M | F96: 103 | G96: M103 | H96: DARK24 | I96: 24M | J96: DARK24M | K96: 6.93 | L96: 1.92 | M96: 77 | N96: 1 | O96: 44 | P96: 121
A97: DARK-24-6-M-116 | B97: Dark | C97: 24 | D97: 6 | E97: M | F97: 116 | G97: M116 | H97: DARK24 | I97: 24M | J97: DARK24M | K97: 6.18 | L97: -0.62 | M97: 77 | N97: 1 | O97: 80 | P97: 157
A98: DARK-24-4-M-98 | B98: Dark | C98: 24 | D98: 4 | E98: M | F98: 98 | G98: M98 | H98: DARK24 | I98: 24M | J98: DARK24M | K98: 6.24 | L98: -0.43 | M98: 77 | N98: 1 | O98: 89 | P98: 166
A99: DARK-24-6-M-112 | B99: Dark | C99: 24 | D99: 6 | E99: M | F99: 112 | G99: M112 | H99: DARK24 | I99: 24M | J99: DARK24M | K99: 6.57 | L99: 0.70 | M99: 78 | N99: 1 | O99: 86 | P99: 164
A100: DARK-24-6-M-108 | B100: Dark | C100: 24 | D100: 6 | E100: M | F100: 108 | G100: M108 | H100: DARK24 | I100: 24M | J100: DARK24M | M100: 82 | N100: 1 | O100: 56 | P100: 138
A101: DARK-24-6-M-120 | B101: Dark | C101: 24 | D101: 6 | E101: M | F101: 120 | G101: M120 | H101: DARK24 | I101: 24M | J101: DARK24M | K101: 6.73 | L101: 1.24 | M101: 83 | N101: 1 | O101: 100 | P101: 183
A102: DARK-24-6-M-114 | B102: Dark | C102: 24 | D102: 6 | E102: M | F102: 114 | G102: M114 | H102: DARK24 | I102: 24M | J102: DARK24M | K102: 6.50 | L102: 0.46 | M102: 83 | N102: 1 | O102: 78 | P102: 161
A103: DARK-24-6-M-117 | B103: Dark | C103: 24 | D103: 6 | E103: M | F103: 117 | G103: M117 | H103: DARK24 | I103: 24M | J103: DARK24M | K103: 6.60 | L103: 0.80 | M103: 83 | N103: 1 | O103: 41 | P103: 124
A104: DARK-24-6-M-118 | B104: Dark | C104: 24 | D104: 6 | E104: M | F104: 118 | G104: M118 | H104: DARK24 | I104: 24M | J104: DARK24M | K104: 6.55 | L104: 0.63 | M104: 84 | N104: 1 | O104: 80 | P104: 164
A105: DARK-24-6-M-119 | B105: Dark | C105: 24 | D105: 6 | E105: M | F105: 119 | G105: M119 | H105: DARK24 | I105: 24M | J105: DARK24M | K105: 5.88 | L105: -1.63 | M105: 84 | N105: 1 | O105: 64 | P105: 148
A106: DARK-24-6-M-113 | B106: Dark | C106: 24 | D106: 6 | E106: M | F106: 113 | G106: M113 | H106: DARK24 | I106: 24M | J106: DARK24M | K106: 6.46 | L106: 0.33 | M106: 85 | N106: 1 | O106: 84 | P106: 169
A107: DARK-24-6-M-107 | B107: Dark | C107: 24 | D107: 6 | E107: M | F107: 107 | G107: M107 | H107: DARK24 | I107: 24M | J107: DARK24M | K107: 6.44 | L107: 0.26 | M107: 87 | N107: 1 | O107: 82 | P107: 169
A108: DARK-24-6-M-110 | B108: Dark | C108: 24 | D108: 6 | E108: M | F108: 110 | G108: M110 | H108: DARK24 | I108: 24M | J108: DARK24M | K108: 5.82 | L108: -1.84 | M108: 87 | N108: 1 | O108: 25 | P108: 112
A109: DARK-24-6-M-111 | B109: Dark | C109: 24 | D109: 6 | E109: M | F109: 111 | G109: M111 | H109: DARK24 | I109: 24M | J109: DARK24M | K109: 6.11 | L109: -0.86 | M109: 87 | N109: 1 | O109: 80 | P109: 167
A110: DARK-24-6-M-109 | B110: Dark | C110: 24 | D110: 6 | E110: M | F110: 109 | G110: M109 | H110: DARK24 | I110: 24M | J110: DARK24M | K110: 6.26 | L110: -0.37 | M110: 88 | N110: 1 | O110: 75 | P110: 163
A111: DARK-24-6-M-115 | B111: Dark | C111: 24 | D111: 6 | E111: M | F111: 115 | G111: M115 | H111: DARK24 | I111: 24M | J111: DARK24M | K111: 6.19 | L111: -0.59 | M111: 88 | N111: 1 | O111: 54 | P111: 142
A112: DARK-24-6-M-121 | B112: Dark | C112: 24 | D112: 6 | E112: M | F112: 121 | G112: M121 | H112: DARK24 | I112: 24M | J112: DARK24M | K112: 6.21 | L112: -0.52 | M112: 88 | N112: 1 | O112: 69 | P112: 157
A113: ALAN-26-9-F-14 | B113: ALAN | C113: 26 | D113: 9 | E113: F | F113: 14 | G113: F14 | H113: ALAN26 | I113: 26F | J113: ALAN26F | K113: 6.52 | L113: =(K113-AVERAGE(K$113:K$134))/STDEV(K$113:K$134) -> 1.77 | M113: 52 | N113: 1 | O113: 2 | P113: 54
A114: ALAN-26-8-F-10 | B114: ALAN | C114: 26 | D114: 8 | E114: F | F114: 10 | G114: F10 | H114: ALAN26 | I114: 26F | J114: ALAN26F | K114: 6.23 | L114: =(K114-AVERAGE(K$113:K$134))/STDEV(K$113:K$134) -> 0.74 | M114: 52 | N114: 1 | O114: 18 | P114: 70
A115: ALAN-26-8-F-2 | B115: ALAN | C115: 26 | D115: 8 | E115: F | F115: 2 | G115: F2 | H115: ALAN26 | I115: 26F | J115: ALAN26F | K115: 6.39 | L115: 1.31 | M115: 52 | N115: 1 | O115: 70 | P115: 122
A116: ALAN-26-8-F-4 | B116: ALAN | C116: 26 | D116: 8 | E116: F | F116: 4 | G116: F4 | H116: ALAN26 | I116: 26F | J116: ALAN26F | K116: 5.84 | L116: -0.65 | M116: 52 | N116: 1 | O116: 94 | P116: 146
A117: ALAN-26-8-F-59 | B117: ALAN | C117: 26 | D117: 8 | E117: F | F117: 59 | G117: F59 | H117: ALAN26 | I117: 26F | J117: ALAN26F | K117: 5.95 | L117: -0.25 | M117: 52 | N117: 1 | O117: 46 | P117: 98
A118: ALAN-26-8-F-7 | B118: ALAN | C118: 26 | D118: 8 | E118: F | F118: 7 | G118: F7 | H118: ALAN26 | I118: 26F | J118: ALAN26F | K118: 6.02 | L118: -0.01 | M118: 52 | N118: 1 | O118: 44 | P118: 96
A119: ALAN-26-9-F-12 | B119: ALAN | C119: 26 | D119: 9 | E119: F | F119: 12 | G119: F12 | H119: ALAN26 | I119: 26F | J119: ALAN26F | K119: 6.20 | L119: 0.64 | M119: 53 | N119: 1 | O119: 40 | P119: 93
A120: ALAN-26-8-F-3 | B120: ALAN | C120: 26 | D120: 8 | E120: F | F120: 3 | G120: F3 | H120: ALAN26 | I120: 26F | J120: ALAN26F | K120: 6.04 | L120: 0.07 | M120: 53 | N120: 1 | O120: 26 | P120: 79
A121: ALAN-26-8-F-6 | B121: ALAN | C121: 26 | D121: 8 | E121: F | F121: 6 | G121: F6 | H121: ALAN26 | I121: 26F | J121: ALAN26F | K121: 5.59 | L121: -1.54 | M121: 53 | N121: 1 | O121: 11 | P121: 64
A122: ALAN-26-8-F-8 | B122: ALAN | C122: 26 | D122: 8 | E122: F | F122: 8 | G122: F8 | H122: ALAN26 | I122: 26F | J122: ALAN26F | K122: 6.07 | L122: 0.17 | M122: 53 | N122: 1 | O122: 70 | P122: 123
A123: ALAN-26-8-F-1 | B123: ALAN | C123: 26 | D123: 8 | E123: F | F123: 1 | G123: F1 | H123: ALAN26 | I123: 26F | J123: ALAN26F | K123: 6.18 | L123: 0.56 | M123: 54 | N123: 1 | O123: 51 | P123: 105
A124: ALAN-26-9-F-18 | B124: ALAN | C124: 26 | D124: 9 | E124: F | F124: 18 | G124: F18 | H124: ALAN26 | I124: 26F | J124: ALAN26F | K124: 5.94 | L124: -0.29 | M124: 54 | N124: 1 | O124: 51 | P124: 105
A125: ALAN-26-9-F-19 | B125: ALAN | C125: 26 | D125: 9 | E125: F | F125: 19 | G125: F19 | H125: ALAN26 | I125: 26F | J125: ALAN26F | K125: 6.19 | L125: 0.60 | M125: 54 | N125: 1 | O125: 17 | P125: 71
A126: ALAN-26-8-F-5 | B126: ALAN | C126: 26 | D126: 8 | E126: F | F126: 5 | G126: F5 | H126: ALAN26 | I126: 26F | J126: ALAN26F | K126: 5.77 | L126: -0.90 | M126: 55 | N126: 1 | O126: 72 | P126: 127
A127: ALAN-26-9-F-13 | B127: ALAN | C127: 26 | D127: 9 | E127: F | F127: 13 | G127: F13 | H127: ALAN26 | I127: 26F | J127: ALAN26F | K127: 6.17 | L127: 0.53 | M127: 56 | N127: 1 | O127: 47 | P127: 103
A128: ALAN-26-9-F-20 | B128: ALAN | C128: 26 | D128: 9 | E128: F | F128: 20 | G128: F20 | H128: ALAN26 | I128: 26F | J128: ALAN26F | K128: 5.87 | L128: -0.54 | M128: 56 | N128: 1 | O128: 89 | P128: 145
A129: ALAN-26-9-F-11 | B129: ALAN | C129: 26 | D129: 9 | E129: F | F129: 11 | G129: F11 | H129: ALAN26 | I129: 26F | J129: ALAN26F | K129: 5.93 | L129: -0.33 | M129: 57 | N129: 1 | O129: 70 | P129: 127
A130: ALAN-26-9-F-15 | B130: ALAN | C130: 26 | D130: 9 | E130: F | F130: 15 | G130: F15 | H130: ALAN26 | I130: =C130&E130 -> 26F | J130: ALAN26F | M130: 58 | N130: 1 | O130: 13 | P130: 71
A131: ALAN-26-9-F-16 | B131: ALAN | C131: 26 | D131: 9 | E131: F | F131: 16 | G131: F16 | H131: ALAN26 | I131: 26F | J131: ALAN26F | K131: 5.37 | L131: -2.32 | M131: 58 | N131: 1 | O131: 38 | P131: 96
A132: ALAN-26-9-F-58 | B132: ALAN | C132: 26 | D132: 9 | E132: F | F132: 58 | G132: F58 | H132: ALAN26 | I132: 26F | J132: ALAN26F | M132: 60 | N132: 1 | O132: 100 | P132: 160
A133: ALAN-26-9-F-56 | B133: ALAN | C133: 26 | D133: 9 | E133: F | F133: 56 | G133: F56 | H133: ALAN26 | I133: 26F | J133: ALAN26F | K133: 6.40 | L133: 1.35 | M133: 69 | N133: 1 | O133: 58 | P133: 127
A134: ALAN-26-9-F-57 | B134: ALAN | C134: 26 | D134: 9 | E134: F | F134: 57 | G134: F57 | H134: ALAN26 | I134: 26F | J134: ALAN26F | K134: 5.76 | L134: -0.93 | M134: 71 | N134: 1 | O134: 96 | P134: 167
A135: DARK-26-12-F-43 | B135: Dark | C135: 26 | D135: 12 | E135: F | F135: 43 | G135: F43 | H135: DARK26 | I135: 26F | J135: DARK26F | K135: 6.70 | L135: =(K135-AVERAGE(K$135:K$162))/STDEV(K$135:K$162) -> 2.00 | M135: 52 | N135: 1 | O135: 39 | P135: 91
A136: DARK-26-12-F-45 | B136: Dark | C136: 26 | D136: 12 | E136: F | F136: 45 | G136: F45 | H136: DARK26 | I136: 26F | J136: DARK26F | K136: 6.54 | L136: =(K136-AVERAGE(K$135:K$162))/STDEV(K$135:K$162) -> 1.51 | M136: 53 | N136: 1 | O136: 114 | P136: 167
A137: DARK-26-12-F-46 | B137: Dark | C137: 26 | D137: 12 | E137: F | F137: 46 | G137: F46 | H137: DARK26 | I137: 26F | J137: DARK26F | K137: 5.94 | L137: -0.34 | M137: 53 | N137: 1 | O137: 41 | P137: 94
A138: DARK-26-10-F-33 | B138: Dark | C138: 26 | D138: 10 | E138: F | F138: 33 | G138: F33 | H138: DARK26 | I138: 26F | J138: DARK26F | K138: 6.02 | L138: -0.10 | M138: 54 | N138: 1 | O138: 16 | P138: 70
A139: DARK-26-10-F-34 | B139: Dark | C139: 26 | D139: 10 | E139: F | F139: 34 | G139: F34 | H139: DARK26 | I139: 26F | J139: DARK26F | K139: 5.99 | L139: -0.19 | M139: 54 | N139: 1 | O139: 43 | P139: 97
A140: DARK-26-10-F-38 | B140: Dark | C140: 26 | D140: 10 | E140: F | F140: 38 | G140: F38 | H140: DARK26 | I140: 26F | J140: DARK26F | K140: 5.67 | L140: -1.18 | M140: 54 | N140: 1 | O140: 56 | P140: 110
A141: DARK-26-12-F-60 | B141: Dark | C141: 26 | D141: 12 | E141: F | F141: 60 | G141: F60 | H141: DARK26 | I141: 26F | J141: DARK26F | K141: 6.47 | L141: 1.29 | M141: 54 | N141: 1 | O141: 28 | P141: 82
A142: DARK-26-10-F-32 | B142: Dark | C142: 26 | D142: 10 | E142: F | F142: 32 | G142: F32 | H142: DARK26 | I142: 26F | J142: DARK26F | M142: 55 | N142: 1 | O142: 108 | P142: 163
A143: DARK-26-10-F-35 | B143: Dark | C143: 26 | D143: 10 | E143: F | F143: 35 | G143: F35 | H143: DARK26 | I143: 26F | J143: DARK26F | K143: 6.24 | L143: 0.58 | M143: 55 | N143: 1 | O143: 31 | P143: 86
A144: DARK-26-12-F-44 | B144: Dark | C144: 26 | D144: 12 | E144: F | F144: 44 | G144: F44 | H144: DARK26 | I144: 26F | J144: DARK26F | K144: 6.12 | L144: 0.21 | M144: 55 | N144: 1 | O144: 70 | P144: 125
A145: DARK-26-12-F-47 | B145: Dark | C145: 26 | D145: 12 | E145: F | F145: 47 | G145: F47 | H145: DARK26 | I145: 26F | J145: DARK26F | K145: 5.73 | L145: -0.99 | M145: 55 | N145: 1 | O145: 41 | P145: 96
A146: DARK-26-10-F-52 | B146: Dark | C146: 26 | D146: 10 | E146: F | F146: 52 | G146: F52 | H146: DARK26 | I146: 26F | J146: DARK26F | K146: 6.32 | L146: 0.83 | M146: 55 | N146: 1 | O146: 106 | P146: 161
A147: DARK-26-10-F-53 | B147: Dark | C147: 26 | D147: 10 | E147: F | F147: 53 | G147: F53 | H147: DARK26 | I147: 26F | J147: DARK26F | K147: 5.49 | L147: -1.73 | M147: 55 | N147: 1 | O147: 72 | P147: 127
A148: DARK-26-10-F-31 | B148: Dark | C148: 26 | D148: 10 | E148: F | F148: 31 | G148: F31 | H148: DARK26 | I148: 26F | J148: DARK26F | K148: 6.30 | L148: 0.77 | M148: 56 | N148: 1 | O148: 74 | P148: 130
A149: DARK-26-10-F-36 | B149: Dark | C149: 26 | D149: 10 | E149: F | F149: 36 | G149: F36 | H149: DARK26 | I149: 26F | J149: DARK26F | K149: 6.13 | L149: 0.24 | M149: 56 | N149: 1 | O149: 89 | P149: 145
A150: DARK-26-10-F-37 | B150: Dark | C150: 26 | D150: 10 | E150: F | F150: 37 | G150: F37 | H150: DARK26 | I150: 26F | J150: DARK26F | K150: 6.12 | L150: 0.21 | M150: 56 | N150: 1 | O150: 56 | P150: 112
A151: DARK-26-10-F-40 | B151: Dark | C151: 26 | D151: 10 | E151: F | F151: 40 | G151: F40 | H151: DARK26 | I151: 26F | J151: DARK26F | K151: 5.90 | L151: -0.47 | M151: 56 | N151: 1 | O151: 56 | P151: 112
A152: DARK-26-10-F-51 | B152: Dark | C152: 26 | D152: 10 | E152: F | F152: 51 | G152: F51 | H152: DARK26 | I152: 26F | J152: DARK26F | K152: 6.16 | L152: 0.33 | M152: 56 | N152: 1 | O152: 28 | P152: 84
A153: DARK-26-12-F-61 | B153: Dark | C153: 26 | D153: 12 | E153: F | F153: 61 | G153: F61 | H153: DARK26 | I153: 26F | J153: DARK26F | K153: 6.29 | L153: 0.74 | M153: 56 | N153: 1 | O153: 15 | P153: 71
A154: DARK-26-12-F-63 | B154: Dark | C154: 26 | D154: 12 | E154: F | F154: 63 | G154: F63 | H154: DARK26 | I154: 26F | J154: DARK26F | K154: 5.74 | L154: -0.96 | M154: 56 | N154: 1 | O154: 47 | P154: 103
A155: DARK-26-12-F-49 | B155: Dark | C155: 26 | D155: 12 | E155: F | F155: 49 | G155: F49 | H155: DARK26 | I155: 26F | J155: DARK26F | K155: 6.26 | L155: 0.64 | M155: 58 | N155: 1 | O155: 31 | P155: 89
A156: DARK-26-10-F-39 | B156: Dark | C156: 26 | D156: 10 | E156: F | F156: 39 | G156: F39 | H156: DARK26 | I156: 26F | J156: DARK26F | K156: 6.07 | L156: 0.06 | M156: 59 | N156: 1 | O156: 47 | P156: 106
A157: DARK-26-12-F-62 | B157: Dark | C157: 26 | D157: 12 | E157: F | F157: 62 | G157: F62 | H157: DARK26 | I157: 26F | J157: DARK26F | K157: 5.81 | L157: -0.74 | M157: 60 | N157: 1 | O157: 79 | P157: 139
A158: DARK-26-12-F-41 | B158: Dark | C158: 26 | D158: 12 | E158: F | F158: 41 | G158: F41 | H158: DARK26 | I158: 26F | J158: DARK26F | K158: 6.17 | L158: 0.37 | M158: 61 | N158: 1 | O158: 69 | P158: 130
A159: DARK-26-12-F-42 | B159: Dark | C159: 26 | D159: 12 | E159: F | F159: 42 | G159: F42 | H159: DARK26 | I159: 26F | J159: DARK26F | K159: 6.06 | L159: 0.03 | M159: 61 | N159: 1 | O159: 49 | P159: 110
A160: DARK-26-10-F-54 | B160: Dark | C160: 26 | D160: 10 | E160: F | F160: 54 | G160: F54 | H160: DARK26 | I160: 26F | J160: DARK26F | K160: 5.78 | L160: -0.84 | M160: 61 | N160: 1 | O160: 45 | P160: 106
A161: DARK-26-12-F-64 | B161: Dark | C161: 26 | D161: 12 | E161: F | F161: 64 | G161: F64 | H161: DARK26 | I161: 26F | J161: DARK26F | K161: 5.19 | L161: -2.65 | M161: 63 | N161: 1 | O161: 52 | P161: 115
A162: DARK-26-10-F-55 | B162: Dark | C162: 26 | D162: 10 | E162: F | F162: 55 | G162: F55 | H162: DARK26 | I162: 26F | J162: DARK26F | K162: 6.18 | L162: 0.40 | M162: 64 | N162: 1 | O162: 56 | P162: 120
A163: ALAN-26-8-M-4 | B163: ALAN | C163: 26 | D163: 8 | E163: M | F163: 4 | G163: M4 | H163: ALAN26 | I163: 26M | J163: ALAN26M | K163: 5.92 | L163: =(K163-AVERAGE(K$163:K$194))/STDEV(K$163:K$194) -> -1.23 | M163: 52 | N163: 1 | O163: 2 | P163: 54
A164: ALAN-26-8-M-1 | B164: ALAN | C164: 26 | D164: 8 | E164: M | F164: 1 | G164: M1 | H164: ALAN26 | I164: 26M | J164: ALAN26M | K164: 6.23 | L164: =(K164-AVERAGE(K$163:K$194))/STDEV(K$163:K$194) -> -0.24 | M164: 52 | N164: 1 | O164: 61 | P164: 113
A165: ALAN-26-8-M-5 | B165: ALAN | C165: 26 | D165: 8 | E165: M | F165: 5 | G165: M5 | H165: ALAN26 | I165: 26M | J165: ALAN26M | K165: 6.25 | L165: -0.17 | M165: 52 | N165: 1 | O165: 92 | P165: 144
A166: ALAN-26-9-M-13 | B166: ALAN | C166: 26 | D166: 9 | E166: M | F166: 13 | G166: M13 | H166: ALAN26 | I166: 26M | J166: ALAN26M | K166: 6.67 | L166: 1.17 | M166: 53 | N166: 1 | O166: 36 | P166: 89
A167: ALAN-26-9-M-14 | B167: ALAN | C167: 26 | D167: 9 | E167: M | F167: 14 | G167: M14 | H167: ALAN26 | I167: 26M | J167: ALAN26M | K167: 6.35 | L167: 0.15 | M167: 53 | N167: 1 | O167: 43 | P167: 96
A168: ALAN-26-9-M-19 | B168: ALAN | C168: 26 | D168: 9 | E168: M | F168: 19 | G168: M19 | H168: ALAN26 | I168: 26M | J168: ALAN26M | K168: 6.73 | L168: 1.37 | M168: 53 | N168: 1 | O168: 88 | P168: 141
A169: ALAN-26-9-M-57 | B169: ALAN | C169: 26 | D169: 9 | E169: M | F169: 57 | G169: M57 | H169: ALAN26 | I169: 26M | J169: ALAN26M | K169: 6.51 | L169: 0.66 | M169: 53 | N169: 1 | O169: 38 | P169: 91
A170: ALAN-26-8-M-6 | B170: ALAN | C170: 26 | D170: 8 | E170: M | F170: 6 | G170: M6 | H170: ALAN26 | I170: 26M | J170: ALAN26M | K170: 6.03 | L170: -0.88 | M170: 53 | N170: 1 | O170: 45 | P170: 98
A171: ALAN-26-8-M-8 | B171: ALAN | C171: 26 | D171: 8 | E171: M | F171: 8 | G171: M8 | H171: ALAN26 | I171: 26M | J171: ALAN26M | K171: 6.36 | L171: 0.18 | M171: 53 | N171: 1 | O171: 104 | P171: 157
A172: ALAN-26-9-M-16 | B172: ALAN | C172: 26 | D172: 9 | E172: M | F172: 16 | G172: M16 | H172: ALAN26 | I172: 26M | J172: ALAN26M | K172: 5.81 | L172: -1.59 | M172: 54 | N172: 1
A173: ALAN-26-9-M-11 | B173: ALAN | C173: 26 | D173: 9 | E173: M | F173: 11 | G173: M11 | H173: ALAN26 | I173: 26M | J173: ALAN26M | K173: 5.75 | L173: -1.78 | M173: 54 | N173: 1 | O173: 37 | P173: 91
A174: ALAN-26-9-M-15 | B174: ALAN | C174: 26 | D174: 9 | E174: M | F174: 15 | G174: M15 | H174: ALAN26 | I174: 26M | J174: ALAN26M | K174: 6.35 | L174: 0.15 | M174: 54 | N174: 1 | O174: 56 | P174: 110
A175: ALAN-26-9-M-20 | B175: ALAN | C175: 26 | D175: 9 | E175: M | F175: 20 | G175: M20 | H175: ALAN26 | I175: 26M | J175: ALAN26M | K175: 6.47 | L175: 0.53 | M175: 54 | N175: 1 | O175: 80 | P175: 134
A176: ALAN-26-9-M-58 | B176: ALAN | C176: 26 | D176: 9 | E176: M | F176: 58 | G176: M58 | H176: ALAN26 | I176: 26M | J176: ALAN26M | K176: 6.39 | L176: 0.27 | M176: 54 | N176: 1 | O176: 52 | P176: 106
A177: ALAN-26-9-M-59 | B177: ALAN | C177: 26 | D177: 9 | E177: M | F177: 59 | G177: M59 | H177: ALAN26 | I177: 26M | J177: ALAN26M | K177: 6.88 | L177: 1.85 | M177: 54 | N177: 1 | O177: 35 | P177: 89
A178: ALAN-26-8-M-64 | B178: ALAN | C178: 26 | D178: 8 | E178: M | F178: 64 | G178: M64 | H178: ALAN26 | I178: 26M | J178: ALAN26M | K178: 5.92 | L178: -1.23 | M178: 54 | N178: 1 | O178: 49 | P178: 103
A179: ALAN-26-8-M-65 | B179: ALAN | C179: 26 | D179: 8 | E179: M | F179: 65 | G179: M65 | H179: ALAN26 | I179: 26M | J179: ALAN26M | K179: 6.46 | L179: 0.50 | M179: 54 | N179: 1 | O179: 102 | P179: 156
A180: ALAN-26-9-M-18 | B180: ALAN | C180: 26 | D180: 9 | E180: M | F180: 18 | G180: M18 | H180: ALAN26 | I180: 26M | J180: ALAN26M | K180: 6.44 | L180: 0.43 | M180: 55 | N180: 1
A181: ALAN-26-9-M-12 | B181: ALAN | C181: 26 | D181: 9 | E181: M | F181: 12 | G181: M12 | H181: ALAN26 | I181: 26M | J181: ALAN26M | K181: 6.89 | L181: 1.88 | M181: 55 | N181: 1 | O181: 65 | P181: 120
A182: ALAN-26-8-M-2 | B182: ALAN | C182: 26 | D182: 8 | E182: M | F182: 2 | G182: M2 | H182: ALAN26 | I182: 26M | J182: ALAN26M | K182: 6.34 | L182: 0.11 | M182: 55 | N182: 1 | O182: 90 | P182: 145
A183: ALAN-26-8-M-3 | B183: ALAN | C183: 26 | D183: 8 | E183: M | F183: 3 | G183: M3 | H183: ALAN26 | I183: 26M | J183: ALAN26M | K183: 6.31 | L183: 0.02 | M183: 55 | N183: 1 | O183: 71 | P183: 126
A184: ALAN-26-9-M-61 | B184: ALAN | C184: 26 | D184: 9 | E184: M | F184: 61 | G184: M61 | H184: ALAN26 | I184: 26M | J184: ALAN26M | K184: 6.36 | L184: 0.18 | M184: 56 | N184: 1 | O184: 57 | P184: 113
A185: ALAN-26-9-M-62 | B185: ALAN | C185: 26 | D185: 9 | E185: M | F185: 62 | G185: M62 | H185: ALAN26 | I185: 26M | J185: ALAN26M | K185: 6.43 | L185: 0.40 | M185: 56 | N185: 1 | O185: 56 | P185: 112
A186: ALAN-26-8-M-68 | B186: ALAN | C186: 26 | D186: 8 | E186: M | F186: 68 | G186: M68 | H186: ALAN26 | I186: 26M | J186: ALAN26M | M186: 57 | N186: 1 | O186: 82 | P186: 139
A187: ALAN-26-8-M-66 | B187: ALAN | C187: 26 | D187: 8 | E187: M | F187: 66 | G187: M66 | H187: ALAN26 | I187: 26M | J187: ALAN26M | K187: 6.20 | L187: -0.34 | M187: 57 | N187: 1 | O187: 48 | P187: 105
A188: ALAN-26-9-M-17 | B188: ALAN | C188: 26 | D188: 9 | E188: M | F188: 17 | G188: M17 | H188: ALAN26 | I188: 26M | J188: ALAN26M | K188: 6.37 | L188: 0.21 | M188: 58 | N188: 1 | O188: 17 | P188: 75
A189: ALAN-26-8-M-10 | B189: ALAN | C189: 26 | D189: 8 | E189: M | F189: 10 | G189: M10 | H189: ALAN26 | I189: 26M | J189: ALAN26M | K189: 6.30 | L189: -0.01 | M189: 60 | N189: 1 | O189: 43 | P189: 103
A190: ALAN-26-9-M-60 | B190: ALAN | C190: 26 | D190: 9 | E190: M | F190: 60 | G190: M60 | H190: ALAN26 | I190: 26M | J190: ALAN26M | K190: 5.43 | L190: -2.81 | M190: 61 | N190: 1 | O190: 52 | P190: 113
A191: ALAN-26-9-M-63 | B191: ALAN | C191: 26 | D191: 9 | E191: M | F191: 63 | G191: M63 | H191: ALAN26 | I191: 26M | J191: ALAN26M | K191: 6.36 | L191: 0.18 | M191: 61 | N191: 1 | O191: 89 | P191: 150
A192: ALAN-26-8-M-7 | B192: ALAN | C192: 26 | D192: 8 | E192: M | F192: 7 | G192: M7 | H192: ALAN26 | I192: 26M | J192: ALAN26M | K192: 6.32 | L192: 0.05 | M192: 61 | N192: 1 | O192: 94 | P192: 155
A193: ALAN-26-8-M-9 | B193: ALAN | C193: 26 | D193: 8 | E193: M | F193: 9 | G193: M9 | H193: ALAN26 | I193: 26M | J193: ALAN26M | K193: 6.13 | L193: -0.56 | M193: 64 | N193: 1 | O193: 27 | P193: 91
A194: ALAN-26-8-M-67 | B194: ALAN | C194: 26 | D194: 8 | E194: M | F194: 67 | G194: M67 | H194: ALAN26 | I194: =C194&E194 -> 26M | J194: ALAN26M | K194: 6.48 | L194: 0.56 | M194: 69 | N194: 1 | O194: 101 | P194: 170
A195: DARK-26-12-M-45 | B195: Dark | C195: 26 | D195: 12 | E195: M | F195: 45 | G195: M45 | H195: DARK26 | I195: 26M | J195: DARK26M | K195: 6.50 | L195: =(K195-AVERAGE(K$195:K$225))/STDEV(K$195:K$225) -> 0.35 | M195: 52 | N195: 1 | O195: 2 | P195: 54
A196: DARK-26-12-M-44 | B196: Dark | C196: 26 | D196: 12 | E196: M | F196: 44 | G196: M44 | H196: DARK26 | I196: 26M | J196: DARK26M | K196: 6.66 | L196: =(K196-AVERAGE(K$195:K$225))/STDEV(K$195:K$225) -> 0.74 | M196: 52 | N196: 1 | O196: 41 | P196: 93
A197: DARK-26-10-M-33 | B197: Dark | C197: 26 | D197: 10 | E197: M | F197: 33 | G197: M33 | H197: DARK26 | I197: 26M | J197: DARK26M | K197: 6.88 | L197: 1.28 | M197: 54 | N197: 1 | O197: 78 | P197: 132
A198: DARK-26-10-M-35 | B198: Dark | C198: 26 | D198: 10 | E198: M | F198: 35 | G198: M35 | H198: DARK26 | I198: 26M | J198: DARK26M | K198: 6.62 | L198: 0.64 | M198: 54 | N198: 1 | O198: 42 | P198: 96
A199: DARK-26-10-M-36 | B199: Dark | C199: 26 | D199: 10 | E199: M | F199: 36 | G199: M36 | H199: DARK26 | I199: 26M | J199: DARK26M | K199: 6.16 | L199: -0.49 | M199: 54 | N199: 1 | O199: 49 | P199: 103
A200: DARK-26-12-M-48 | B200: Dark | C200: 26 | D200: 12 | E200: M | F200: 48 | G200: M48 | H200: DARK26 | I200: 26M | J200: DARK26M | K200: 6.67 | L200: 0.77 | M200: 54 | N200: 1 | O200: 52 | P200: 106
... 25 more rows

Sheet Mating
A1: Male_ID | B1: Light_treatment | C1: Temperature | D1: Replicate | E1: Male_age | F1: Male_weight | G1: Pronotum_width | H1: F1_weight | I1: F1_age | J1: Latency_to_sing | K1: Latency_to_mount | L1: Latency_to_sperm_transfer | M1: Second_female | N1: F2_weight | O1: F2_age | P1: Did_mate
A2: M82 | B2: ALAN | C2: 24 | D2: 3 | E2: 12 | F2: 0.7549 | G2: 6.81 | H2: 0.8746 | I2: 108 | J2: 8 | M2: 1 | N2: 0.8501 | O2: 108 | P2: 0
A3: M77 | B3: ALAN | C3: 24 | D3: 3 | E3: 10 | F3: 0.7547 | G3: 6.26 | H3: 0.7131 | I3: 108 | J3: 3 | M3: 1 | N3: 0.8746 | O3: 78 | P3: 0
A4: M85 | B4: ALAN | C4: 24 | D4: 3 | E4: 12 | F4: 0.7029 | G4: 6.45 | H4: 0.9975 | I4: 119 | J4: 6 | K4: 6 | L4: 10 | M4: 0 | P4: 1
A5: M91 | B5: ALAN | C5: 24 | D5: 3 | E5: 12 | F5: 0.7162 | G5: 6.36 | H5: 0.8678 | I5: 114 | J5: 1 | K5: 1 | L5: 5 | M5: 0 | P5: 1
A6: M79 | B6: ALAN | C6: 24 | D6: 3 | E6: 12 | F6: 0.5908 | G6: 6.5 | H6: 0.9983 | I6: 114 | J6: 1 | K6: 1 | L6: 4 | M6: 0 | P6: 1
A7: M86 | B7: ALAN | C7: 24 | D7: 3 | E7: 11 | F7: 0.702 | G7: 6.59 | H7: 0.7811 | I7: 114 | J7: 1 | K7: 2 | L7: 6 | M7: 0 | P7: 1
A8: M83 | B8: ALAN | C8: 24 | D8: 3 | E8: 11 | F8: 0.74 | G8: 6.57 | H8: 0.7117 | I8: 114 | J8: 6 | M8: 1 | N8: 0.7131 | O8: 114 | P8: 0
A9: M88 | B9: ALAN | C9: 24 | D9: 3 | E9: 10 | F9: 0.7826 | G9: 6.71 | H9: 0.7863 | I9: 115 | J9: 0 | K9: 1 | L9: 5 | M9: 0 | P9: 1
A10: M81 | B10: ALAN | C10: 24 | D10: 3 | E10: 10 | F10: 0.8089 | G10: 6.63 | H10: 0.7177 | I10: 115 | J10: 9 | M10: 1 | N10: 0.9325 | O10: 115 | P10: 0
A11: M90 | B11: ALAN | C11: 24 | D11: 3 | E11: 12 | F11: 0.7782 | G11: 6.41 | H11: 0.8345 | I11: 112 | J11: 0 | K11: 5 | L11: 9 | M11: 0 | P11: 1
A12: M126 | B12: ALAN | C12: 24 | D12: 2 | E12: 12 | F12: 0.5988 | G12: 6.26 | H12: 0.7956 | I12: 112 | J12: 1 | K12: 4 | L12: 10 | M12: 0 | P12: 1
A13: M84 | B13: ALAN | C13: 24 | D13: 3 | E13: 11 | F13: 0.6751 | G13: 6.38 | H13: 0.7014 | I13: 114 | J13: 8 | K13: 10 | L13: 18 | M13: 0 | P13: 1
A14: M131 | B14: ALAN | C14: 24 | D14: 2 | E14: 13 | F14: 0.5956 | G14: 6.24 | H14: 0.8073 | I14: 117 | M14: 1 | N14: 0.7983 | O14: 117 | P14: 0
A15: M125 | B15: ALAN | C15: 24 | D15: 2 | E15: 11 | F15: 0.6719 | G15: 6.2 | H15: 0.9697 | I15: 117 | J15: 1 | K15: 2 | L15: 6 | M15: 0 | P15: 1
A16: M134 | B16: ALAN | C16: 24 | D16: 2 | E16: 12 | F16: 0.6752 | G16: 6.36 | H16: 0.8401 | I16: 117 | J16: 1 | K16: 3 | L16: 10 | M16: 0 | P16: 1
A17: M124 | B17: ALAN | C17: 24 | D17: 2 | E17: 12 | F17: 0.691 | G17: 6.31 | H17: 0.6183 | I17: 112 | J17: 1 | K17: 3 | L17: 7 | M17: 1 | N17: 0.7796 | O17: 112 | P17: 1
A18: M136 | B18: ALAN | C18: 24 | D18: 2 | E18: 10 | F18: 0.6368 | G18: 6.065 | H18: 0.8949 | I18: 112 | J18: 5 | K18: 6 | L18: 10 | M18: 0 | P18: 1
A19: M132 | B19: ALAN | C19: 24 | D19: 2 | E19: 10 | F19: 0.5554 | G19: 6.13 | H19: 0.807 | I19: 112 | J19: 2 | K19: 2 | L19: 5 | M19: 0 | P19: 1
A20: M129 | B20: ALAN | C20: 24 | D20: 2 | E20: 11 | F20: 0.5975 | G20: 6.52 | H20: 0.7598 | I20: 112 | J20: 1 | M20: 1 | N20: 0.6183 | O20: 112 | P20: 0
A21: M127 | B21: ALAN | C21: 24 | D21: 2 | E21: 10 | F21: 0.7369 | G21: 6.43 | H21: 0.8975 | I21: 112 | J21: 7 | K21: 7 | L21: 13 | M21: 0 | P21: 1
A22: M135 | B22: ALAN | C22: 24 | D22: 2 | E22: 11 | F22: 0.5933 | G22: 5.98 | H22: 0.798 | I22: 112 | J22: 0 | K22: 2 | L22: 5 | M22: 0 | P22: 1
A23: M128 | B23: ALAN | C23: 24 | D23: 2 | E23: 11 | F23: 0.697 | H23: 0.7956 | I23: 115 | J23: 1 | K23: 2 | L23: 8 | M23: 0 | P23: 1
A24: M130 | B24: ALAN | C24: 24 | D24: 2 | E24: 13 | F24: 0.6525 | G24: 5.86 | H24: 0.735 | I24: 119 | J24: 2 | K24: 10 | L24: 15 | M24: 0 | P24: 1
A25: M133 | B25: ALAN | C25: 24 | D25: 2 | E25: 13 | F25: 0.637 | G25: 5.87 | H25: 0.7489 | I25: 119 | J25: 4 | M25: 1 | N25: 0.6602 | O25: 119 | P25: 0
A26: M57 | B26: ALAN | C26: 26 | D26: 9 | E26: 11 | F26: 0.7192 | G26: 6.51 | H26: 0.6988 | I26: 115 | J26: 1 | K26: 2 | L26: 8 | M26: 0 | P26: 1
A27: M13 | B27: ALAN | C27: 26 | D27: 9 | E27: 11 | F27: 0.7185 | G27: 6.67 | H27: 0.5386 | I27: 115 | J27: 2 | K27: 3 | L27: 8 | M27: 0 | P27: 1
A28: M59 | B28: ALAN | C28: 26 | D28: 9 | E28: 10 | F28: 0.7012 | G28: 6.88 | H28: 0.7306 | I28: 115 | J28: 0 | K28: 1 | L28: 6 | M28: 0 | P28: 1
A29: M1 | B29: ALAN | C29: 26 | D29: 8 | E29: 12 | F29: 0.6587 | G29: 6.23 | H29: 0.6192 | I29: 115 | J29: 8 | K29: 8 | L29: 12 | M29: 0 | P29: 1
A30: M19 | B30: ALAN | C30: 26 | D30: 9 | E30: 11 | F30: 0.8212 | G30: 6.73 | H30: 0.6248 | I30: 115 | J30: 2 | K30: 2 | L30: 9 | M30: 0 | P30: 1
A31: M5 | B31: ALAN | C31: 26 | D31: 8 | E31: 12 | F31: 0.6843 | G31: 6.25 | H31: 0.8421 | I31: 115 | J31: 0 | K31: 3 | L31: 10 | M31: 0 | P31: 1
A32: M14 | B32: ALAN | C32: 26 | D32: 9 | E32: 11 | F32: 0.618 | G32: 6.35 | H32: 0.8778 | I32: 101 | J32: 0 | K32: 1 | L32: 5 | M32: 0 | P32: 1
A33: M8 | B33: ALAN | C33: 26 | D33: 8 | E33: 11 | F33: 0.728 | G33: 6.36 | H33: 0.9275 | I33: 101 | J33: 0 | K33: 1 | L33: 6 | M33: 0 | P33: 1
A34: M6 | B34: ALAN | C34: 26 | D34: 8 | E34: 11 | F34: 0.5932 | G34: 6.03 | H34: 0.49 | I34: 115 | J34: 0 | K34: 1 | L34: 8 | M34: 0 | P34: 1
A35: M65 | B35: ALAN | C35: 26 | D35: 8 | E35: 11 | F35: 0.6552 | G35: 6.46 | H35: 0.0893 | I35: 102 | M35: 1 | N35: 0.6184 | O35: 102 | P35: 0
A36: M11 | B36: ALAN | C36: 26 | D36: 9 | E36: 11 | F36: 0.5796 | G36: 5.75 | H36: 0.717 | I36: 102 | J36: 16 | K36: 16 | M36: 1 | N36: 0.8932 | O36: 102 | P36: 0
A37: M64 | B37: ALAN | C37: 26 | D37: 8 | E37: 11 | F37: 0.5191 | G37: 5.92 | H37: 0.6814 | I37: 102 | J37: 0 | K37: 7 | L37: 10 | M37: 1 | N37: 0.717 | O37: 102 | P37: 1
A38: M58 | B38: ALAN | C38: 26 | D38: 9 | E38: 11 | F38: 0.6427 | G38: 6.39 | H38: 0.8212 | I38: 102 | J38: 1 | K38: 4 | M38: 1 | N38: 0.7746 | O38: 102 | P38: 0
A39: M15 | B39: ALAN | C39: 26 | D39: 9 | E39: 11 | F39: 0.7947 | G39: 6.35 | H39: 0.8212 | I39: 102 | J39: 2 | K39: 3 | L39: 9 | M39: 0 | P39: 1
A40: M2 | B40: ALAN | C40: 26 | D40: 8 | E40: 12 | F40: 0.7059 | G40: 6.34 | H40: 0.8403 | I40: 97 | J40: 0 | K40: 0 | L40: 5 | M40: 0 | P40: 1
A41: M20 | B41: ALAN | C41: 26 | D41: 9 | E41: 13 | F41: 0.7381 | G41: 6.47 | H41: 0.8932 | I41: 104 | J41: 2 | M41: 1 | N41: 0.7746 | O41: 104 | P41: 0
A42: M3 | B42: ALAN | C42: 26 | D42: 8 | E42: 12 | F42: 0.6682 | G42: 6.31 | H42: 0.9422 | I42: 97 | J42: 13 | K42: 27 | M42: 1 | N42: 0.8932 | O42: 104 | P42: 0
A43: M12 | B43: ALAN | C43: 26 | D43: 9 | E43: 12 | F43: 0.7699 | G43: 6.89 | H43: 0.7675 | I43: 97 | J43: 0 | K43: 0 | L43: 4 | M43: 0 | P43: 1
A44: M17 | B44: ALAN | C44: 26 | D44: 9 | E44: 14 | F44: 0.7065 | G44: 6.37 | H44: 0.7044 | I44: 102 | J44: 2 | K44: 2 | L44: 10 | M44: 0 | P44: 1
A45: M60 | B45: ALAN | C45: 26 | D45: 9 | E45: 11 | F45: 0.4678 | G45: 5.43 | H45: 0.7958 | I45: 102 | J45: 0 | K45: 1 | L45: 5 | M45: 0 | P45: 1
A46: M7 | B46: ALAN | C46: 26 | D46: 8 | E46: 11 | F46: 0.6624 | G46: 6.32 | H46: 0.8932 | I46: 109 | J46: 7 | K46: 7 | L46: 34 | M46: 0 | P46: 1
A47: M63 | B47: ALAN | C47: 26 | D47: 9 | E47: 11 | F47: 0.6614 | G47: 6.36 | H47: 0.7842 | I47: 109 | J47: 1 | K47: 1 | L47: 8 | M47: 0 | P47: 1
A48: M10 | B48: ALAN | C48: 26 | D48: 8 | E48: 12 | F48: 0.6645 | G48: 6.3 | H48: 0.9275 | I48: 109 | J48: 1 | K48: 2 | L48: 7 | M48: 0 | P48: 1
A49: M66 | B49: ALAN | C49: 26 | D49: 8 | E49: 14 | F49: 0.5661 | G49: 6.2 | H49: 0.9975 | I49: 109 | J49: 1 | K49: 8 | L49: 26 | M49: 1 | N49: 0.8639 | O49: 109 | P49: 1
A50: M68 | B50: ALAN | C50: 26 | D50: 8 | E50: 14 | F50: 0.4185 | H50: 0.7369 | I50: 109 | J50: 2 | K50: 6 | M50: 1 | N50: 0.8353 | O50: 109 | P50: 0
A51: M67 | B51: ALAN | C51: 26 | D51: 8 | E51: 13 | F51: 0.7584 | G51: 6.48 | H51: 0.7475 | I51: 112 | J51: 8 | K51: 8 | L51: 12 | M51: 0 | P51: 1
A52: M93 | B52: Dark | C52: 24 | D52: 4 | E52: 11 | F52: 0.7428 | G52: 6.46 | H52: 0.6764 | I52: 108 | J52: 8 | K52: 9 | L52: 15 | M52: 0 | P52: 1
A53: M101 | B53: Dark | C53: 24 | D53: 4 | E53: 12 | F53: 0.6176 | G53: 5.75 | H53: 0.9606 | I53: 114 | J53: 2 | K53: 2 | L53: 6 | M53: 0 | P53: 1
A54: M95 | B54: Dark | C54: 24 | D54: 4 | E54: 12 | F54: 0.7309 | G54: 6.49 | H54: 0.7214 | I54: 114 | J54: 0 | K54: 1 | L54: 4 | M54: 0 | P54: 1
A55: M104 | B55: Dark | C55: 24 | D55: 4 | E55: 11 | F55: 0.7872 | G55: 6.77 | H55: 0.8486 | I55: 114 | J55: 1 | K55: 2 | L55: 5 | M55: 0 | P55: 1
A56: M97 | B56: Dark | C56: 24 | D56: 4 | E56: 10 | F56: 0.7933 | G56: 6.66 | H56: 0.7436 | I56: 114 | J56: 1 | K56: 3 | L56: 6 | M56: 0 | P56: 1
A57: M96 | B57: Dark | C57: 24 | D57: 4 | E57: 10 | F57: 0.6693 | H57: 0.8605 | I57: 115 | J57: 1 | K57: 1 | L57: 4 | M57: 0 | P57: 1
A58: M110 | B58: Dark | C58: 24 | D58: 6 | E58: 12 | F58: 0.5911 | G58: 5.82 | H58: 0.8556 | I58: 112 | J58: 11 | K58: 12 | L58: 16 | M58: 0 | P58: 1
A59: M103 | B59: Dark | C59: 24 | D59: 4 | E59: 12 | F59: 0.817 | G59: 6.93 | H59: 0.7414 | I59: 112 | J59: 1 | K59: 6 | L59: 10 | M59: 0 | P59: 1
A60: M98 | B60: Dark | C60: 24 | D60: 4 | E60: 12 | F60: 0.6738 | G60: 6.235 | H60: 0.7753 | I60: 112 | J60: 1 | M60: 1 | N60: 0.7903 | O60: 112 | P60: 0
A61: M116 | B61: Dark | C61: 24 | D61: 6 | E61: 12 | F61: 0.6707 | G61: 6.18 | H61: 0.8961 | I61: 112 | J61: 1 | K61: 1 | L61: 6 | M61: 0 | P61: 1
A62: M102 | B62: Dark | C62: 24 | D62: 4 | E62: 12 | F62: 0.6761 | G62: 6.44 | H62: 0.7277 | I62: 112 | J62: 9 | K62: 9 | L62: 14 | M62: 0 | P62: 1
A63: M112 | B63: Dark | C63: 24 | D63: 6 | E63: 13 | F63: 0.723 | G63: 6.57 | H63: 0.7602 | I63: 114 | J63: 8 | K63: 8 | L63: 14 | M63: 0 | P63: 1
A64: M120 | B64: Dark | C64: 24 | D64: 6 | E64: 11 | F64: 0.72 | G64: 6.73 | H64: 0.8404 | I64: 117 | J64: 0 | K64: 1 | L64: 5 | M64: 0 | P64: 1
A65: M108 | B65: Dark | C65: 24 | D65: 6 | E65: 12 | F65: 0.6994 | H65: 0.7128 | I65: 117 | J65: 0 | K65: 1 | L65: 6 | M65: 0 | P65: 1
A66: M114 | B66: Dark | C66: 24 | D66: 6 | E66: 11 | F66: 0.7765 | G66: 6.5 | H66: 0.9025 | I66: 117 | J66: 9 | K66: 9 | L66: 14 | M66: 0 | P66: 1
A67: M117 | B67: Dark | C67: 24 | D67: 6 | E67: 11 | F67: 0.8067 | G67: 6.6 | H67: 0.7983 | I67: 117 | M67: 1 | N67: 0.8073 | O67: 117 | P67: 0
A68: M113 | B68: Dark | C68: 24 | D68: 6 | E68: 11 | F68: 0.6486 | G68: 6.46 | H68: 0.7796 | I68: 112 | J68: 1 | K68: 6 | M68: 1 | N68: 0.7301 | O68: 112 | P68: 0
A69: M119 | B69: Dark | C69: 24 | D69: 6 | E69: 12 | F69: 0.602 | G69: 5.88 | H69: 0.8096 | I69: 112 | J69: 2 | K69: 3 | L69: 8 | M69: 0 | P69: 1
A70: M118 | B70: Dark | C70: 24 | D70: 6 | E70: 12 | F70: 0.7034 | G70: 6.55 | H70: 0.8995 | I70: 112 | M70: 1 | N70: 0.7598 | O70: 112 | P70: 0
A71: M111 | B71: Dark | C71: 24 | D71: 6 | E71: 12 | F71: 0.7055 | G71: 6.11 | H71: 0.7422 | I71: 115 | J71: 1 | M71: 1 | N71: 0.7615 | O71: 115 | P71: 0
A72: M107 | B72: Dark | C72: 24 | D72: 6 | E72: 12 | F72: 0.6989 | G72: 6.44 | H72: 0.8248 | I72: 115 | J72: 2 | K72: 3 | L72: 12 | M72: 0 | P72: 1
A73: M121 | B73: Dark | C73: 24 | D73: 6 | E73: 11 | F73: 0.5753 | G73: 6.21 | H73: 0.7831 | I73: 115 | J73: 1 | K73: 2 | L73: 6 | M73: 0 | P73: 1
A74: M115 | B74: Dark | C74: 24 | D74: 6 | E74: 11 | F74: 0.5598 | G74: 6.19 | H74: 0.799 | I74: 115 | J74: 4 | K74: 4 | L74: 11 | M74: 0 | P74: 1
A75: M110 | B75: Dark | C75: 24 | D75: 6 | E75: 12 | F75: 0.5911 | G75: 5.82 | H75: 0.7889 | I75: 115 | J75: 3 | K75: 13 | L75: 18 | M75: 0 | P75: 1
A76: M109 | B76: Dark | C76: 24 | D76: 6 | E76: 11 | F76: 0.6909 | G76: 6.255 | H76: 0.7785 | I76: 115 | J76: 1 | K76: 2 | L76: 7 | M76: 0 | P76: 1
A77: M52 | B77: Dark | C77: 26 | D77: 10 | E77: 10 | F77: 0.734 | G77: 6.34 | H77: 0.7842 | I77: 101 | J77: 1 | K77: 2 | L77: 6 | M77: 0 | P77: 1
A78: M44 | B78: Dark | C78: 26 | D78: 12 | E78: 12 | F78: 0.7352 | G78: 6.66 | H78: 0.6531 | I78: 115 | J78: 1 | K78: 1 | L78: 6 | M78: 0 | P78: 1
A79: M36 | B79: Dark | C79: 26 | D79: 10 | E79: 11 | F79: 0.6726 | G79: 6.16 | H79: 0.7673 | I79: 102 | J79: 2 | K79: 2 | L79: 5 | M79: 0 | P79: 1
A80: M48 | B80: Dark | C80: 26 | D80: 12 | E80: 11 | F80: 0.7042 | G80: 6.67 | H80: 0.7554 | I80: 102 | J80: 4 | K80: 6 | L80: 10 | M80: 0 | P80: 1
A81: M53 | B81: Dark | C81: 26 | D81: 10 | E81: 11 | F81: 0.7595 | G81: 6.69 | H81: 0.8216 | I81: 102 | J81: 1 | K81: 2 | L81: 8 | M81: 0 | P81: 1
A82: M35 | B82: Dark | C82: 26 | D82: 10 | E82: 11 | F82: 0.782 | G82: 6.62 | H82: 0.8714 | I82: 102 | J82: 2 | K82: 4 | L82: 31 | M82: 0 | P82: 1
A83: M33 | B83: Dark | C83: 26 | D83: 10 | E83: 11 | F83: 0.8302 | G83: 6.88 | H83: 0.7502 | I83: 102 | J83: 0 | K83: 1 | L83: 5 | M83: 0 | P83: 1
A84: M40 | B84: Dark | C84: 26 | D84: 10 | E84: 12 | F84: 0.6608 | G84: 6.23 | H84: 0.7746 | I84: 104 | J84: 5 | M84: 1 | N84: 0.6814 | O84: 104 | P84: 0
A85: M51 | B85: Dark | C85: 26 | D85: 10 | E85: 13 | F85: 0.386 | G85: 4.62 | H85: 0.8897 | I85: 97 | J85: 1 | K85: 2 | L85: 25 | M85: 0 | P85: 1
A86: M54 | B86: Dark | C86: 26 | D86: 10 | E86: 13 | F86: 0.7922 | G86: 6.4 | H86: 0.7225 | I86: 97 | J86: 1 | K86: 2 | L86: 6 | M86: 0 | P86: 1
A87: M34 | B87: Dark | C87: 26 | D87: 10 | E87: 12 | F87: 0.8754 | G87: 6.62 | H87: 0.7206 | I87: 97 | J87: 0 | K87: 0 | L87: 5 | M87: 0 | P87: 1
A88: M47 | B88: Dark | C88: 26 | D88: 12 | E88: 12 | F88: 0.7709 | G88: 6.39 | H88: 0.7202 | I88: 97 | J88: 0 | K88: 0 | M88: 1 | N88: 0.6814 | O88: 104 | P88: 0
A89: M31 | B89: Dark | C89: 26 | D89: 10 | E89: 12 | F89: 0.8593 | G89: 6.58 | H89: 0.9433 | I89: 97 | J89: 24 | K89: 25 | L89: 28 | M89: 1 | N89: 0.7746 | O89: 104 | P89: 1
A90: M43 | B90: Dark | C90: 26 | D90: 12 | E90: 14 | F90: 0.7075 | G90: 6.28 | H90: 0.7746 | I90: 109 | J90: 1 | K90: 2 | L90: 10 | M90: 0 | P90: 1
A91: M73 | B91: Dark | C91: 26 | D91: 12 | E91: 13 | F91: 0.6419 | G91: 5.8 | H91: 0.7113 | I91: 102 | J91: 1 | K91: 1 | L91: 15 | M91: 0 | P91: 1
A92: M72 | B92: Dark | C92: 26 | D92: 12 | E92: 11 | F92: 0.6866 | G92: 6.54 | H92: 0.8471 | I92: 102 | J92: 10 | K92: 11 | L92: 19 | M92: 0 | P92: 1
A93: M39 | B93: Dark | C93: 26 | D93: 10 | E93: 11 | F93: 0.6347 | G93: 6.17 | H93: 0.9052 | I93: 102 | J93: 1 | K93: 1 | L93: 6 | M93: 0 | P93: 1
A94: M70 | B94: Dark | C94: 26 | D94: 12 | E94: 11 | F94: 0.6284 | G94: 6.13 | H94: 0.6814 | I94: 109 | J94: 1 | K94: 2 | L94: 7 | M94: 0 | P94: 1
A95: M56 | B95: Dark | C95: 26 | D95: 10 | E95: 11 | F95: 0.7161 | G95: 6.34 | H95: 0.8778 | I95: 109 | J95: 1 | K95: 2 | L95: 6 | M95: 0 | P95: 1
A96: M69 | B96: Dark | C96: 26 | D96: 12 | E96: 11 | F96: 0.6067 | G96: 6.31 | H96: 0.8177 | I96: 102 | J96: 1 | K96: 2 | L96: 8 | M96: 0 | P96: 1
A97: M71 | B97: Dark | C97: 26 | D97: 12 | E97: 14 | F97: 0.5573 | G97: 6.13 | H97: 0.9191 | I97: 109 | J97: 1 | K97: 1 | L97: 21 | M97: 0 | P97: 1
A98: M32 | B98: Dark | C98: 26 | D98: 10 | E98: 14 | F98: 0.774 | G98: 6.47 | H98: 0.8286 | I98: 109 | J98: 0 | K98: 1 | L98: 14 | M98: 0 | P98: 1
A99: M55 | B99: Dark | C99: 26 | D99: 10 | E99: 14 | G99: 6.22 | H99: 0.7518 | I99: 109 | J99: 0 | K99: 0 | L99: 6 | M99: 0 | P99: 1
A100: M74 | B100: Dark | C100: 26 | D100: 12 | E100: 11 | F100: 0.7672 | G100: 6.93 | H100: 0.7475 | I100: 108 | J100: 2 | K100: 3 | L100: 8 | M100: 0 | P100: 1
A101: M75 | B101: Dark | C101: 26 | D101: 10 | E101: 12 | F101: 0.7434 | G101: 6.58 | H101: 0.8501 | I101: 108 | J101: 29 | M101: 1 | N101: 0.7131 | O101: 78 | P101: 0

Sheet Likelihood of calling
A1: Male_ID | B1: Light_treatment | C1: Temperature | D1: Replicate | E1: Male_age | F1: Pronotum_width | G1: Male_weight | H1: Call_success
A2: M85 | B2: ALAN | C2: 24 | D2: 3 | E2: 9 | F2: 6.45 | G2: 0.7029 | H2: 1
A3: M91 | B3: ALAN | C3: 24 | D3: 3 | E3: 10 | F3: 6.36 | G3: 0.7162 | H3: 0
A4: M83 | B4: ALAN | C4: 24 | D4: 3 | E4: 10 | F4: 6.57 | G4: 0.7400 | H4: 1
A5: M81 | B5: ALAN | C5: 24 | D5: 3 | E5: 9 | F5: 6.63 | G5: 0.8089 | H5: 1
A6: M126 | B6: ALAN | C6: 24 | D6: 2 | E6: 9 | G6: 0.5988 | H6: 1
A7: M84 | B7: ALAN | C7: 24 | D7: 3 | E7: 9 | F7: 6.38 | G7: 0.6751 | H7: 1
A8: M124 | B8: ALAN | C8: 24 | D8: 2 | E8: 9 | F8: 6.31 | G8: 0.6910 | H8: 0
A9: M131 | B9: ALAN | C9: 24 | D9: 2 | E9: 12 | F9: 6.24 | G9: 0.5956 | H9: 0
A10: M125 | B10: ALAN | C10: 24 | D10: 2 | E10: 10 | F10: 6.2 | G10: 0.6719 | H10: 1
A11: M132 | B11: ALAN | C11: 24 | D11: 2 | E11: 9 | F11: 6.13 | G11: 0.5554 | H11: 1
A12: M129 | B12: ALAN | C12: 24 | D12: 2 | E12: 10 | F12: 6.52 | G12: 0.5975 | H12: 1
A13: M135 | B13: ALAN | C13: 24 | D13: 2 | E13: 10 | F13: 5.98 | G13: 0.5933 | H13: 1
A14: M136 | B14: ALAN | C14: 24 | D14: 2 | E14: 9 | F14: 6.065 | G14: 0.6368 | H14: 1
A15: M128 | B15: ALAN | C15: 24 | D15: 2 | E15: 10 | G15: 0.697 | H15: 1
A16: M133 | B16: ALAN | C16: 24 | D16: 2 | E16: 9 | F16: 5.87 | G16: 0.637 | H16: 1
A17: M5 | B17: ALAN | C17: 26 | D17: 8 | E17: 10 | F17: 6.25 | G17: 0.6843 | H17: 0
A18: M59 | B18: ALAN | C18: 26 | D18: 9 | E18: 9 | F18: 6.88 | G18: 0.7012 | H18: 1
A19: =A18 -> M59 | B19: ALAN | C19: 26 | D19: 9 | E19: 9 | F19: 6.88 | G19: 0.7012 | H19: 1
A20: M59 | B20: ALAN | C20: 26 | D20: 9 | E20: 9 | F20: 6.88 | G20: 0.7012 | H20: 1
A21: M59 | B21: ALAN | C21: 26 | D21: 9 | E21: 9 | F21: 6.88 | G21: 0.7012 | H21: 1
A22: M13 | B22: ALAN | C22: 26 | D22: 9 | E22: 10 | F22: 6.67 | G22: 0.7185 | H22: 1
A23: M57 | B23: ALAN | C23: 26 | D23: 9 | E23: 10 | F23: 6.51 | G23: 0.7192 | H23: 0
A24: M14 | B24: ALAN | C24: 26 | D24: 9 | E24: 10 | F24: 6.35 | G24: 0.6180 | H24: 0
A25: M15 | B25: ALAN | C25: 26 | D25: 9 | E25: 10 | F25: 6.35 | G25: 0.7947 | H25: 0
A26: M11 | B26: ALAN | C26: 26 | D26: 9 | E26: 10 | F26: 5.75 | G26: 0.5796 | H26: 1
A27: M20 | B27: ALAN | C27: 26 | D27: 9 | E27: 11 | F27: 6.47 | G27: 0.7381 | H27: 1
A28: M12 | B28: ALAN | C28: 26 | D28: 9 | E28: 10 | F28: 6.89 | G28: 0.7699 | H28: 1
A29: M66 | B29: ALAN | C29: 26 | D29: 8 | E29: 11 | F29: 6.2 | G29: 0.5661 | H29: 1
A30: M62 | B30: ALAN | C30: 26 | D30: 9 | E30: 12 | F30: 6.43 | G30: 0.7160 | H30: 1
A31: M61 | B31: ALAN | C31: 26 | D31: 9 | E31: 12 | F31: 6.36 | G31: 0.7222 | H31: 1
A32: M10 | B32: ALAN | C32: 26 | D32: 8 | E32: 9 | F32: 6.3 | G32: 0.6645 | H32: 1
A33: M17 | B33: ALAN | C33: 26 | D33: 9 | E33: 11 | F33: 6.37 | G33: 0.7065 | H33: 1
A34: M7 | B34: ALAN | C34: 26 | D34: 8 | E34: 10 | F34: 6.32 | G34: 0.6624 | H34: 1
A35: M60 | B35: ALAN | C35: 26 | D35: 9 | E35: 10 | F35: 5.43 | G35: 0.4678 | H35: 0
A36: M67 | B36: ALAN | C36: 26 | D36: 8 | E36: 10 | F36: 6.48 | G36: 0.7584 | H36: 1
A37: M101 | B37: Dark | C37: 24 | D37: 4 | E37: 10 | F37: 5.75 | G37: 0.6176 | H37: 1
A38: M95 | B38: Dark | C38: 24 | D38: 4 | E38: 10 | F38: 6.49 | G38: 0.7309 | H38: 1
A39: M96 | B39: Dark | C39: 24 | D39: 4 | E39: 9 | G39: 0.6693 | H39: 1
A40: M116 | B40: Dark | C40: 24 | D40: 6 | E40: 9 | F40: 6.18 | G40: 0.6707 | H40: 1
A41: M103 | B41: Dark | C41: 24 | D41: 4 | E41: 9 | F41: 6.93 | G41: 0.8170 | H41: 1
A42: M100 | B42: Dark | C42: 24 | D42: 4 | E42: 9 | F42: 6.49 | G42: 0.7334 | H42: 1
A43: M112 | B43: Dark | C43: 24 | D43: 6 | E43: 11 | F43: 6.57 | G43: 0.7230 | H43: 1
A44: M108 | B44: Dark | C44: 24 | D44: 6 | E44: 11 | G44: 0.6994 | H44: 1
A45: M120 | B45: Dark | C45: 24 | D45: 6 | E45: 10 | F45: 6.73 | G45: 0.7200 | H45: 1
A46: M114 | B46: Dark | C46: 24 | D46: 6 | E46: 10 | F46: 6.5 | G46: 0.7765 | H46: 0
A47: M117 | B47: Dark | C47: 24 | D47: 6 | E47: 10 | F47: 6.6 | G47: 0.8067 | H47: 1
A48: M113 | B48: Dark | C48: 24 | D48: 6 | E48: 10 | F48: 6.46 | G48: 0.6486 | H48: 1
A49: M118 | B49: Dark | C49: 24 | D49: 6 | E49: 11 | F49: 6.55 | G49: 0.7034 | H49: 1
A50: M111 | B50: Dark | C50: 24 | D50: 6 | E50: 11 | F50: 6.11 | G50: 0.7055 | H50: 1
A51: M107 | B51: Dark | C51: 24 | D51: 6 | E51: 11 | F51: 6.44 | G51: 0.6989 | H51: 1
A52: M109 | B52: Dark | C52: 24 | D52: 6 | E52: 10 | F52: 6.255 | G52: 0.6909 | H52: 0
A53: M121 | B53: Dark | C53: 24 | D53: 6 | E53: 10 | F53: 6.21 | G53: 0.5753 | H53: 0
A54: M44 | B54: Dark | C54: 26 | D54: 12 | E54: 10 | F54: 6.66 | G54: 0.7352 | H54: 1
A55: M53 | B55: Dark | C55: 26 | D55: 10 | E55: 10 | F55: 6.69 | G55: 0.7597 | H55: 1
A56: M36 | B56: Dark | C56: 26 | D56: 10 | E56: 10 | F56: 6.16 | G56: 0.6726 | H56: 0
A57: M35 | B57: Dark | C57: 26 | D57: 10 | E57: 10 | G57: 0.7820 | H57: 0
A58: M47 | B58: Dark | C58: 26 | D58: 12 | E58: 10 | F58: 6.39 | G58: 0.7709 | H58: 0
A59: M54 | B59: Dark | C59: 26 | D59: 10 | E59: 11 | F59: 6.4 | G59: 0.7922 | H59: 1
A60: M51 | B60: Dark | C60: 26 | D60: 10 | E60: 11 | F60: 4.62 | G60: 0.3860 | H60: 0
A61: M31 | B61: Dark | C61: 26 | D61: 10 | E61: 10 | F61: 6.58 | G61: 0.8593 | H61: 0
A62: M42 | B62: Dark | C62: 26 | D62: 12 | E62: 12 | F62: 6.35 | G62: 0.6718 | H62: 0
A63: M49 | B63: Dark | C63: 26 | D63: 12 | E63: 12 | F63: 6.49 | G63: 0.6996 | H63: 1
A64: M35 | B64: Dark | C64: 26 | D64: 10 | E64: 14 | G64: 0.7599 | H64: 0
A65: M50 | B65: Dark | C65: 26 | D65: 12 | E65: 12 | F65: 6.53 | G65: 0.7802 | H65: 1
A66: M41 | B66: Dark | C66: 26 | D66: 12 | E66: 12 | F66: 6.01 | G66: 0.5464 | H66: 1
A67: M71 | B67: Dark | C67: 26 | D67: 12 | E67: 12 | F67: 6.13 | G67: 0.5573 | H67: 1
A68: M73 | B68: Dark | C68: 26 | D68: 12 | E68: 10 | F68: 5.8 | G68: 0.6419 | H68: 1
A69: M39 | B69: Dark | C69: 26 | D69: 10 | E69: 10 | F69: 6.17 | G69: 0.6347 | H69: 1
A70: M56 | B70: Dark | C70: 26 | D70: 10 | E70: 10 | F70: 6.34 | G70: 0.7161 | H70: 1
A71: M72 | B71: Dark | C71: 26 | D71: 12 | E71: 10 | F71: 6.54 | G71: 0.6866 | H71: 1

Sheet Courtship song
A1: Male_ID | B1: Light_treatment | C1: Temperature | D1: Replicate | E1: Male_weight | F1: Pronotum_width | G1: Male_age | H1: Call_bout_number | I1: Average_Chirp_Duration | J1: Average_Chirp_Interval | K1: Average_CPI | L1: Average_CPD | M1: Average_CPN | N1: Average_Trill_Duration | O1: Average_TPI | P1: Average_TPD | Q1: Average_TPN
A2: M125 | B2: ALAN | C2: 24 | D2: 2 | E2: 0.6719 | F2: 6.2 | G2: 10 | H2: 3 | I2: 0.56575 | J2: 0.10325 | K2: 0.02625 | L2: 0.032875 | M2: 8 | N2: 2.25825 | O2: 0.004875 | P2: 0.021 | Q2: 66.25
A3: M126 | B3: ALAN | C3: 24 | D3: 2 | E3: 0.5988 | F3: 6.26 | G3: 9 | H3: 4 | I3: 0.459 | J3: 0.10325 | K3: 0.025875 | L3: 0.0275 | M3: 7.25 | N3: 3.5115 | O3: 0.003125 | P3: 0.022875 | Q3: 108.25
A4: M128 | B4: ALAN | C4: 24 | D4: 2 | E4: 0.697 | G4: 10 | H4: 1 | I4: 0.54975 | J4: 0.0465 | K4: 0.030375 | L4: 0.03575 | M4: 8.25 | N4: 3.34725 | O4: 0.00625 | P4: 0.0205 | Q4: 100.75
A5: M129 | B5: ALAN | C5: 24 | D5: 2 | E5: 0.5975 | F5: 6.52 | G5: 10 | H5: 1 | I5: 0.42 | J5: 0.073 | K5: 0.022375 | L5: 0.04975 | M5: 6 | N5: 2.191 | O5: 0.005625 | P5: 0.018875 | Q5: 74.75
A6: M132 | B6: ALAN | C6: 24 | D6: 2 | E6: 0.5554 | F6: 6.13 | G6: 9 | H6: 4 | I6: 0.346 | J6: 0.03775 | K6: 0.02075 | L6: 0.049875 | M6: 5 | N6: 1.4 | O6: 0.00325 | P6: 0.019875 | Q6: 53
A7: M133 | B7: ALAN | C7: 24 | D7: 2 | E7: 0.637 | F7: 5.87 | G7: 9 | H7: 1 | I7: 0.46225 | J7: 0.1585 | K7: 0.026375 | L7: 0.03225 | M7: 7 | N7: 2.7775 | O7: 0.009 | P7: 0.01825 | Q7: 86
A8: M135 | B8: ALAN | C8: 24 | D8: 2 | E8: 0.5933 | F8: 5.98 | G8: 10 | H8: 2 | I8: 0.40575 | J8: 0.13425 | K8: 0.02625 | L8: 0.03325 | M8: 6.25 | N8: 2.7645 | O8: 0.00725 | P8: 0.01775 | Q8: 82
A9: M136 | B9: ALAN | C9: 24 | D9: 2 | E9: 0.6368 | F9: 6.065 | G9: 9 | H9: 2 | I9: 0.33175 | J9: 0.085 | K9: 0.01975 | L9: 0.04075 | M9: 5.5 | N9: 1.7625 | O9: 0.00475 | P9: 0.0195 | Q9: 61.25
A10: M81 | B10: ALAN | C10: 24 | D10: 3 | E10: 0.8089 | F10: 6.63 | G10: 9 | H10: 3 | I10: 0.33625 | J10: 0.0845 | K10: 0.021625 | L10: 0.04775 | M10: 4.75 | N10: 3.48825 | O10: 0.004375 | P10: 0.018 | Q10: 122
A11: M83 | B11: ALAN | C11: 24 | D11: 3 | E11: 0.74 | F11: 6.57 | G11: 10 | H11: 4 | I11: 0.6135 | J11: 0.08425 | K11: 0.02575 | L11: 0.040125 | M11: 8.75 | N11: 3.3295 | O11: 0.004125 | P11: 0.020125 | Q11: 103.25
A12: M84 | B12: ALAN | C12: 24 | D12: 3 | E12: 0.6751 | F12: 6.38 | G12: 9 | H12: 2 | I12: 0.46625 | J12: 0.0865 | K12: 0.030625 | L12: 0.03625 | M12: 6.5 | N12: 4.035 | O12: 0.005125 | P12: 0.022125 | Q12: 114.75
A13: M85 | B13: ALAN | C13: 24 | D13: 3 | E13: 0.7029 | F13: 6.45 | G13: 9 | H13: 4 | I13: 0.35775 | J13: 0.1223333333 | K13: 0.019625 | L13: 0.049 | M13: 5.25 | N13: 1.3485 | O13: 0.0045 | P13: 0.022375 | Q13: 38.5
A14: M13 | B14: ALAN | C14: 26 | D14: 9 | E14: 0.7185 | F14: 6.67 | G14: 10 | H14: 1 | I14: 0.4215 | J14: 0.1655 | K14: 0.02875 | L14: 0.026625 | M14: 6.75 | N14: 1.4625 | O14: 0.003833333333 | P14: 0.023 | Q14: 48.75
A15: M12 | B15: ALAN | C15: 26 | D15: 9 | E15: 0.7699 | F15: 6.89 | G15: 10 | H15: 3 | I15: 0.4245 | J15: 0.09375 | K15: 0.02025 | L15: 0.040875 | M15: 6.5 | N15: 1.6965 | O15: 0.006625 | P15: 0.016375 | Q15: 42
A16: M15 | B16: ALAN | C16: 26 | D16: 9 | E16: 0.7947 | F16: 6.35 | G16: 10 | H16: 2 | I16: 0.459 | J16: 0.134 | K16: 0.025375 | L16: 0.043 | M16: 6.5 | N16: 2.7595 | O16: 0.002875 | P16: 0.020875 | Q16: 87.75
A17: M17 | B17: ALAN | C17: 26 | D17: 9 | E17: 0.7065 | F17: 6.37 | G17: 11 | H17: 2 | I17: 0.4895 | J17: 0.06075 | K17: 0.02575 | L17: 0.034125 | M17: 7.5 | N17: 3.0655 | O17: 0.005125 | P17: 0.01975 | Q17: 101
A18: M20 | B18: ALAN | C18: 26 | D18: 9 | E18: 0.7381 | F18: 6.47 | G18: 11 | H18: 3 | I18: 0.6335 | J18: 0.13775 | K18: 0.026375 | L18: 0.0315 | M18: 9.75 | N18: 2.947 | O18: 0.001625 | P18: 0.021875 | Q18: 89.75
A19: M59 | B19: ALAN | C19: 26 | D19: 9 | E19: 0.7012 | F19: 6.88 | G19: 9 | H19: 2 | I19: 0.58375 | J19: 0.14825 | K19: 0.035 | L19: 0.023 | M19: 9 | N19: 1.06225 | O19: 0.00875 | P19: 0.015875 | Q19: 40.5
A20: M61 | B20: ALAN | C20: 26 | D20: 9 | E20: 0.7222 | F20: 6.36 | G20: 12 | H20: 2 | I20: 0.49025 | J20: 0.052 | K20: 0.01125 | L20: 0.04575 | M20: 8 | N20: 1.7485 | O20: 0.0035 | P20: 0.021875 | Q20: 57.25
A21: M62 | B21: ALAN | C21: 26 | D21: 9 | E21: 0.716 | F21: 6.43 | G21: 12 | H21: 3 | I21: 0.56325 | J21: 0.0895 | K21: 0.014 | L21: 0.031625 | M21: 9.25 | N21: 4.82375 | O21: 0.006875 | P21: 0.014875 | Q21: 155.25
A22: M66 | B22: ALAN | C22: 26 | D22: 8 | E22: 0.5661 | F22: 6.2 | G22: 11 | H22: 3 | I22: 0.492 | J22: 0.1105 | K22: 0.0145 | L22: 0.045375 | M22: 7.5 | N22: 0.87975 | O22: 0.0035 | P22: 0.023875 | Q22: 27.25
A23: M67 | B23: ALAN | C23: 26 | D23: 8 | E23: 0.7584 | F23: 6.48 | G23: 10 | H23: 2 | I23: 0.45875 | J23: 0.068 | K23: 0.0205 | L23: 0.038 | M23: 7.5 | N23: 2.3605 | O23: 0.0035 | P23: 0.022625 | Q23: 74
A24: M7 | B24: ALAN | C24: 26 | D24: 8 | E24: 0.6624 | F24: 6.32 | G24: 10 | H24: 5 | I24: 0.5355 | J24: 0.11925 | K24: 0.015375 | L24: 0.0465 | M24: 7.75 | N24: 1.94325 | O24: 0.00325 | P24: 0.020375 | Q24: 57.75
A25: M10 | B25: ALAN | C25: 26 | D25: 8 | E25: 0.6645 | F25: 6.3 | G25: 9 | H25: 4 | I25: 0.45375 | J25: 0.067 | K25: 0.028 | L25: 0.03625 | M25: 6.75 | N25: 2.966 | O25: 0.00575 | P25: 0.02175 | Q25: 89.5
A26: M11 | B26: ALAN | C26: 26 | D26: 9 | E26: 0.5796 | F26: 5.75 | G26: 10 | H26: 3 | I26: 0.3855 | J26: 0.13525 | K26: 0.027375 | L26: 0.039625 | M26: 5.75 | N26: 2.53475 | O26: 0.004375 | P26: 0.022125 | Q26: 78.5
A27: M101 | B27: Dark | C27: 24 | D27: 4 | E27: 0.6176 | F27: 5.75 | G27: 10 | H27: 4 | I27: 0.36225 | J27: 0.119 | K27: 0.027125 | L27: 0.03625 | M27: 5.5 | N27: 2.4465 | O27: 0.0025 | P27: 0.02 | Q27: 83.75
A28: M100 | B28: Dark | C28: 24 | D28: 4 | E28: 0.7334 | F28: 6.49 | G28: 9 | H28: 2 | I28: 0.36 | J28: 0.10875 | K28: 0.03075 | L28: 0.032375 | M28: 5.75 | N28: 3.20825 | O28: 0.006125 | P28: 0.018375 | Q28: 103.75
A29: M103 | B29: Dark | C29: 24 | D29: 4 | E29: 0.817 | F29: 6.93 | G29: 9 | H29: 7 | I29: 0.44925 | J29: 0.09325 | K29: 0.02925 | L29: 0.034125 | M29: 6.75 | N29: 3.11175 | O29: 0.00375 | P29: 0.022125 | Q29: 84.5
A30: M107 | B30: Dark | C30: 24 | D30: 6 | E30: 0.6989 | F30: 6.44 | G30: 11 | H30: 1 | I30: 0.38575 | J30: 0.08475 | K30: 0.0195 | L30: 0.041125 | M30: 5.75 | N30: 2.76875 | O30: 0.007125 | P30: 0.01875 | Q30: 75.75
A31: M108 | B31: Dark | C31: 24 | D31: 6 | E31: 0.6994 | G31: 11 | H31: 5 | I31: 0.47275 | J31: 0.12825 | K31: 0.021875 | L31: 0.044375 | M31: 6.75 | N31: 2.40775 | O31: 0.005625 | P31: 0.018125 | Q31: 76
A32: M111 | B32: Dark | C32: 24 | D32: 6 | E32: 0.7055 | F32: 6.11 | G32: 11 | H32: 2 | I32: 0.4075 | J32: 0.14475 | K32: 0.0195 | L32: 0.04775 | M32: 5.5 | N32: 2.49725 | O32: 0.005375 | P32: 0.02025 | Q32: 72.25
A33: M112 | B33: Dark | C33: 24 | D33: 6 | E33: 0.723 | F33: 6.57 | G33: 11 | H33: 2 | I33: 0.40425 | J33: 0.075 | K33: 0.0215 | L33: 0.03725 | M33: 6.25 | N33: 1.8665 | O33: 0.004875 | P33: 0.021625 | Q33: 52
A34: M113 | B34: Dark | C34: 24 | D34: 6 | E34: 0.6486 | F34: 6.46 | G34: 10 | H34: 2 | I34: 0.321 | J34: 0.0805 | K34: 0.0245 | L34: 0.038 | M34: 5.25 | N34: 1.956 | O34: 0.008125 | P34: 0.016 | Q34: 58.25
A35: M116 | B35: Dark | C35: 24 | D35: 6 | E35: 0.6707 | F35: 6.18 | G35: 9 | H35: 5 | I35: 0.3446666667 | J35: 0.185 | K35: 0.03966666667 | L35: 0.02083333333 | M35: 5.666666667 | N35: 1.052 | O35: 0.008833333333 | P35: 0.01666666667 | Q35: 33
A36: M117 | B36: Dark | C36: 24 | D36: 6 | E36: 0.8067 | F36: 6.6 | G36: 10 | H36: 2 | I36: 0.37175 | J36: 0.07375 | K36: 0.020125 | L36: 0.045 | M36: 5.75 | N36: 1.884 | O36: 0.002125 | P36: 0.02075 | Q36: 65.5
A37: M118 | B37: Dark | C37: 24 | D37: 6 | E37: 0.7034 | F37: 6.55 | G37: 11 | H37: 2 | I37: 0.325 | J37: 0.08275 | K37: 0.02275 | L37: 0.044 | M37: 4.75 | N37: 3.2775 | O37: 0.003375 | P37: 0.02075 | Q37: 101.5
A38: M120 | B38: Dark | C38: 24 | D38: 6 | E38: 0.72 | F38: 6.73 | G38: 10 | H38: 1 | I38: 0.3475 | J38: 0.09975 | K38: 0.02025 | L38: 0.042125 | M38: 5.75 | N38: 1.2065 | O38: 0.00775 | P38: 0.018875 | Q38: 38
A39: M95 | B39: Dark | C39: 24 | D39: 4 | E39: 0.7309 | F39: 6.49 | G39: 10 | H39: 5 | I39: 0.46575 | J39: 0.0735 | K39: 0.012625 | L39: 0.038625 | M39: 7.5 | N39: 2.17525 | O39: 0.004125 | P39: 0.02225 | Q39: 69.25
A40: M96 | B40: Dark | C40: 24 | D40: 4 | E40: 0.6693 | G40: 9 | H40: 1 | I40: 0.385 | J40: 0.10825 | K40: 0.024625 | L40: 0.034125 | M40: 5.75 | N40: 1.515 | O40: 0.00525 | P40: 0.017 | Q40: 40.25
A41: M71 | B41: Dark | C41: 26 | D41: 12 | E41: 0.5573 | F41: 6.13 | G41: 12 | H41: 4 | I41: 0.607 | J41: 0.06 | K41: 0.02 | L41: 0.0395 | M41: 9.25 | N41: 3.0675 | O41: 0.004375 | P41: 0.024 | Q41: 87.75
A42: M35 | B42: Dark | C42: 26 | D42: 10 | E42: 0.782 | F42: 6.62 | G42: 10 | H42: 2 | I42: 0.5335 | J42: 0.1345 | K42: 0.019375 | L42: 0.039 | M42: 7.75 | N42: 2.0555 | O42: 0.001875 | P42: 0.02175 | Q42: 73.5
A43: M39 | B43: Dark | C43: 26 | D43: 10 | E43: 0.6347 | F43: 6.17 | G43: 10 | H43: 6 | I43: 0.56425 | J43: 0.0695 | K43: 0.020875 | L43: 0.0365 | M43: 9 | N43: 1.82225 | O43: 0.004875 | P43: 0.020125 | Q43: 62
A44: M41 | B44: Dark | C44: 26 | D44: 12 | E44: 0.5464 | F44: 6.01 | G44: 12 | H44: 4 | I44: 0.57825 | J44: 0.1285 | K44: 0.0355 | L44: 0.022 | M44: 9.5 | N44: 2.1715 | O44: 0.007875 | P44: 0.017625 | Q44: 67.5
A45: M44 | B45: Dark | C45: 26 | D45: 12 | E45: 0.7352 | F45: 6.66 | G45: 10 | H45: 1 | I45: 0.37 | J45: 0.0975 | K45: 0.034 | L45: 0.021375 | M45: 6 | N45: 2.84 | O45: 0.003875 | P45: 0.01775 | Q45: 92
A46: M49 | B46: Dark | C46: 26 | D46: 12 | E46: 0.6996 | F46: 6.49 | G46: 12 | H46: 3 | I46: 0.4985 | J46: 0.12325 | K46: 0.0195 | L46: 0.042875 | M46: 7 | N46: 2.148 | O46: 0.005125 | P46: 0.021 | Q46: 66.75
A47: M50 | B47: Dark | C47: 26 | D47: 12 | E47: 0.7802 | F47: 6.53 | G47: 12 | H47: 3 | I47: 0.3615 | J47: 0.10275 | K47: 0.02675 | L47: 0.0415 | M47: 5.25 | N47: 3.16975 | O47: 0.0035 | P47: 0.021625 | Q47: 102
A48: M53 | B48: Dark | C48: 26 | D48: 10 | E48: 0.7597 | F48: 6.69 | G48: 10 | H48: 3 | I48: 0.52725 | J48: 0.0425 | K48: 0.016 | L48: 0.048375 | M48: 8.25 | N48: 1.76725 | O48: 0.0025 | P48: 0.020875 | Q48: 52.25
A49: M54 | B49: Dark | C49: 26 | D49: 10 | E49: 0.7922 | F49: 6.4 | G49: 11 | H49: 2 | I49: 0.383 | J49: 0.10125 | K49: 0.022625 | L49: 0.029375 | M49: 7 | N49: 2.426 | O49: 0.00325 | P49: 0.020125 | Q49: 90.5
A50: M56 | B50: Dark | C50: 26 | D50: 10 | E50: 0.7161 | F50: 6.34 | G50: 10 | H50: 2 | I50: 0.55025 | J50: 0.09975 | K50: 0.011875 | L50: 0.0325 | M50: 9 | N50: 3.20575 | O50: 0.00275 | P50: 0.02175 | Q50: 101.25
A51: M72 | B51: Dark | C51: 26 | D51: 12 | E51: 0.6866 | F51: 6.54 | G51: 10 | H51: 3 | I51: 0.41 | J51: 0.12325 | K51: 0.0305 | L51: 0.034 | M51: 6.5 | N51: 1.272 | O51: 0.00825 | P51: 0.017125 | Q51: 32.25
A52: M73 | B52: Dark | C52: 26 | D52: 12 | E52: 0.6419 | F52: 5.8 | G52: 10 | H52: 4 | I52: 0.442 | J52: 0.08425 | K52: 0.0125 | L52: 0.056 | M52: 6.5 | N52: 1.002 | O52: 0.002625 | P52: 0.021875 | Q52: 30.5
